{"text_format":"1","workbook":"xlsx","n_sheets":4,"sheets":["Cerere de Finantare","Anexa 1","Anexa 2","Anexa 3"],"not_rendered":{"charts":0,"images":1,"macros":1,"external_links":0,"defined_names":1,"comments":0,"pivot_tables":0},"unopened":[],"bounds":{"document_bytes":16777216,"sheet_cells":100000,"rows_first":2000,"rows_last":500,"rows_between":2000,"halvings":0,"cell_chars":16384,"cell_head_chars":4096},"cells_cut":0,"cells_raw":0,"read":"whole","date_system":"1900"}

{"sheet":"Cerere de Finantare","index":0,"n_rows":736,"n_cols":59,"rows_kept":736,"cut":false,"hidden":false,"merged":[[651,43,651,61],[650,43,650,61],[652,0,652,42],[653,0,653,42],[652,43,652,61],[653,43,653,61],[655,0,655,61],[579,30,579,34],[586,31,586,59],[585,0,585,60],[578,0,578,29],[610,0,610,2],[611,0,611,2],[594,3,594,60],[595,3,595,60],[596,3,596,60],[611,5,611,60],[597,3,597,60],[598,3,598,60],[601,5,601,60],[602,5,602,60],[603,5,603,60],[648,0,648,61],[649,0,649,61],[650,0,650,42],[607,5,607,60],[608,5,608,60],[609,5,609,60],[610,5,610,60],[628,0,629,16],[628,17,628,49],[629,17,629,49],[656,0,656,61],[657,0,657,61],[658,0,658,61],[729,0,729,61],[30,1,33,59],[167,46,167,54],[185,24,185,49],[137,48,137,55],[167,32,167,34],[579,35,579,41],[579,42,579,49],[579,50,579,54],[615,1,615,31],[614,41,614,52],[615,41,615,50],[599,5,599,60],[600,5,600,60],[562,0,562,29],[563,0,563,29],[564,0,564,29],[565,0,565,29],[566,0,566,29],[567,0,567,29],[581,0,581,60],[583,0,583,60],[579,55,579,60],[580,0,580,60],[578,42,578,49],[578,50,578,54],[578,55,578,60],[579,0,579,29],[651,0,651,42],[569,0,569,29],[568,0,568,29],[559,30,559,34],[560,30,560,34],[561,30,561,34],[562,30,562,34],[563,30,563,34],[564,30,564,34],[565,30,565,34],[566,30,566,34],[567,30,567,34],[568,30,568,34],[569,30,569,34],[560,0,560,29],[563,50,563,54],[613,3,613,60],[614,0,614,30],[593,0,593,60],[599,0,599,2],[600,0,600,2],[601,0,601,2],[602,0,602,2],[603,0,603,2],[604,0,604,2],[605,0,605,2],[606,0,606,2],[607,0,607,2],[562,42,562,49],[563,42,563,49],[604,5,604,60],[605,5,605,60],[606,5,606,60],[576,55,576,60],[572,30,572,34],[572,35,572,41],[572,42,572,49],[572,50,572,54],[572,55,572,60],[608,0,608,2],[609,0,609,2],[582,1,582,34],[584,1,584,59],[586,1,586,28],[578,30,578,34],[578,35,578,41],[577,30,577,34],[577,35,577,41],[577,42,577,49],[577,50,577,54],[577,55,577,60],[574,30,574,34],[574,35,574,41],[574,42,574,49],[574,50,574,54],[574,55,574,60],[575,30,575,34],[575,35,575,41],[577,0,577,29],[573,30,573,34],[573,35,573,41],[573,42,573,49],[573,50,573,54],[573,55,573,60],[576,30,576,34],[557,35,557,41],[557,42,557,49],[557,50,557,54],[557,55,557,60],[571,42,571,49],[571,50,571,54],[571,55,571,60],[570,30,570,34],[570,35,570,41],[569,35,569,41],[568,35,568,41],[567,35,567,41],[564,42,564,49],[565,42,565,49],[566,42,566,49],[567,42,567,49],[568,42,568,49],[569,42,569,49],[566,35,566,41],[565,35,565,41],[564,35,564,41],[563,35,563,41],[562,35,562,41],[561,35,561,41],[560,35,560,41],[576,35,576,41],[576,42,576,49],[576,50,576,54],[561,0,561,29],[554,30,554,34],[554,35,554,41],[554,42,554,49],[554,50,554,54],[554,55,554,60],[557,0,557,29],[571,0,571,29],[573,0,573,29],[558,42,558,49],[559,0,559,29],[556,0,556,29],[572,0,572,29],[570,0,570,29],[575,42,575,49],[575,50,575,54],[575,55,575,60],[574,0,574,29],[575,0,575,29],[576,0,576,29],[570,42,570,49],[556,30,556,34],[556,35,556,41],[556,42,556,49],[556,50,556,54],[556,55,556,60],[571,30,571,34],[571,35,571,41],[557,30,557,34],[552,30,552,34],[552,35,552,41],[552,42,552,49],[552,50,552,54],[552,55,552,60],[553,30,553,34],[553,35,553,41],[553,42,553,49],[553,50,553,54],[553,55,553,60],[555,30,555,34],[555,35,555,41],[555,42,555,49],[555,50,555,54],[555,55,555,60],[554,0,554,29],[555,0,555,29],[544,30,544,34],[544,35,544,41],[544,42,544,49],[544,50,544,54],[545,30,545,34],[545,35,545,41],[545,42,545,49],[545,50,545,54],[548,30,548,34],[548,35,548,41],[548,42,548,49],[548,50,548,54],[546,35,546,41],[546,42,546,49],[546,50,546,54],[547,30,547,34],[547,35,547,41],[547,42,547,49],[547,50,547,54],[546,30,546,34],[549,30,549,34],[544,0,544,29],[550,35,550,41],[558,0,558,29],[558,30,558,34],[558,35,558,41],[559,35,559,41],[559,42,559,49],[560,42,560,49],[561,42,561,49],[549,0,549,29],[551,0,551,29],[552,0,552,29],[553,0,553,29],[545,55,545,60],[548,55,548,60],[546,55,546,60],[547,55,547,60],[549,35,549,41],[549,42,549,49],[549,50,549,54],[549,55,549,60],[551,30,551,34],[551,35,551,41],[551,42,551,49],[551,50,551,54],[551,55,551,60],[550,0,550,29],[550,42,550,49],[545,0,545,29],[546,0,546,29],[547,0,547,29],[548,0,548,29],[538,35,538,41],[538,42,538,49],[538,50,538,54],[538,55,538,60],[536,0,536,29],[536,30,536,34],[536,35,536,41],[536,42,536,49],[536,50,536,54],[536,55,536,60],[537,0,537,29],[537,30,537,34],[537,35,537,41],[537,42,537,49],[537,50,537,54],[537,55,537,60],[544,55,544,60],[542,0,542,29],[542,30,542,34],[542,35,542,41],[542,42,542,49],[542,50,542,54],[542,55,542,60],[543,0,543,29],[543,30,543,34],[543,35,543,41],[543,42,543,49],[543,50,543,54],[543,55,543,60],[540,0,540,29],[540,35,540,41],[540,42,540,49],[540,30,540,34],[541,30,541,34],[541,35,541,41],[541,42,541,49],[534,0,534,29],[535,0,535,29],[535,30,535,34],[535,35,535,41],[535,42,535,49],[535,50,535,54],[535,55,535,60],[533,0,533,29],[525,30,528,60],[528,0,528,16],[528,17,528,18],[530,0,531,54],[530,55,530,60],[531,55,531,60],[532,0,532,60],[533,30,533,34],[533,35,533,41],[533,42,533,49],[533,50,533,54],[533,55,533,60],[534,30,534,49],[534,50,534,60],[541,0,541,29],[538,0,538,29],[538,30,538,34],[526,0,526,29],[527,0,527,29],[529,0,529,29],[517,0,517,3],[517,4,517,41],[517,42,517,50],[517,51,517,60],[518,0,518,3],[518,4,518,41],[518,42,518,60],[515,0,515,3],[515,4,515,41],[515,42,515,50],[515,51,515,60],[520,0,520,44],[516,0,516,3],[516,4,516,41],[468,55,468,60],[469,0,469,2],[469,3,469,17],[469,18,469,22],[469,23,469,40],[469,41,469,47],[469,48,469,54],[469,55,469,60],[470,0,470,2],[470,3,470,17],[470,18,470,22],[470,23,470,40],[470,41,470,47],[470,48,470,54],[470,55,470,60],[488,0,488,3],[488,4,488,41],[76,50,76,58],[74,1,78,13],[25,1,25,7],[22,0,22,16],[23,0,23,60],[25,10,25,60],[26,10,26,60],[92,15,92,25],[92,27,92,37],[92,39,92,48],[92,50,92,58],[105,1,105,22],[107,6,107,16],[100,27,100,37],[100,39,100,48],[100,50,100,58],[100,15,100,25],[107,28,107,30],[82,1,86,13],[84,15,84,25],[84,27,84,37],[84,39,84,48],[27,15,27,16],[84,50,84,58],[106,35,106,58],[66,1,70,13],[28,1,28,59],[16,12,16,14],[15,9,15,11],[111,51,111,59],[111,40,111,48],[110,18,110,22],[108,6,108,16],[110,1,110,3],[110,12,110,16],[110,5,110,10],[19,0,19,21],[20,0,20,7],[21,0,21,21],[29,1,29,16],[64,50,64,58],[62,27,62,40],[62,41,62,59],[60,2,60,19],[61,0,61,15],[62,0,62,12],[62,13,62,25],[64,1,64,13],[64,15,64,25],[64,27,64,37],[64,39,64,48],[76,15,76,25],[76,27,76,37],[76,39,76,48],[68,15,68,25],[68,27,68,37],[68,39,68,48],[68,50,68,58],[34,1,34,22],[12,18,13,18],[12,20,13,20],[12,30,13,30],[12,31,13,31],[12,32,13,32],[12,33,13,33],[12,34,13,34],[14,30,14,34],[14,20,14,23],[12,22,13,22],[12,23,13,23],[12,25,13,25],[12,27,13,27],[12,28,13,28],[15,27,15,28],[14,24,14,26],[15,24,15,26],[0,6,0,60],[1,6,1,60],[7,0,7,34],[8,0,8,34],[10,7,10,34],[10,0,10,5],[6,36,6,60],[3,42,3,60],[12,0,12,5],[12,7,13,7],[12,9,13,9],[12,10,13,10],[12,12,13,12],[5,0,6,34],[5,36,5,60],[13,0,13,5],[12,21,13,21],[2,50,2,60],[7,36,8,60],[13,36,21,60],[18,9,18,20],[10,36,10,60],[11,36,12,60],[15,20,15,23],[16,20,16,23],[17,20,17,23],[14,15,14,18],[15,15,15,18],[12,13,13,13],[12,15,13,15],[12,16,13,16],[12,17,13,17],[110,28,110,30],[110,31,110,38],[115,1,115,22],[116,1,116,22],[117,1,117,6],[117,12,117,59],[108,33,108,43],[111,1,111,24],[113,1,114,59],[120,1,120,18],[120,30,120,51],[118,1,118,18],[119,1,119,18],[115,41,115,48],[115,51,115,58],[132,2,132,14],[132,19,132,39],[132,43,132,58],[119,30,119,52],[130,19,130,39],[131,19,131,39],[130,43,130,58],[18,0,18,7],[15,30,15,34],[16,30,16,34],[17,30,17,34],[14,6,14,8],[15,6,15,8],[16,6,16,8],[14,9,14,11],[14,12,14,14],[15,12,15,14],[14,27,14,28],[134,40,134,58],[145,1,145,23],[145,28,145,54],[147,1,147,23],[147,28,147,54],[148,1,148,23],[148,28,148,54],[121,1,121,22],[122,1,122,6],[122,12,122,59],[123,1,123,18],[124,1,124,18],[125,1,125,18],[125,30,125,51],[127,0,127,60],[131,43,131,58],[137,17,137,30],[137,1,137,16],[128,0,128,60],[129,1,129,18],[130,1,131,15],[135,1,135,22],[135,25,135,37],[136,0,136,60],[124,30,124,52],[150,1,150,23],[150,28,150,54],[151,1,151,23],[151,28,151,54],[153,1,153,23],[153,28,153,54],[154,1,154,23],[154,28,154,54],[156,1,156,23],[156,28,156,54],[157,1,157,23],[157,28,157,54],[159,1,159,23],[159,28,159,54],[160,1,160,23],[160,28,160,54],[139,1,139,9],[139,10,139,16],[141,1,141,23],[142,1,142,23],[141,28,141,54],[142,28,142,54],[144,1,144,23],[144,28,144,54],[163,1,163,19],[163,22,163,39],[163,42,163,58],[164,1,164,19],[164,22,164,39],[164,42,164,58],[169,1,169,13],[162,1,162,41],[170,1,170,13],[169,20,169,32],[170,20,170,32],[169,36,169,58],[170,36,170,58],[165,1,165,9],[165,52,165,58],[166,1,166,9],[166,52,166,58],[165,15,165,45],[166,15,166,45],[167,1,167,9],[168,1,168,9],[167,17,167,25],[168,17,168,25],[178,4,178,13],[178,16,178,23],[178,26,178,34],[177,47,179,57],[178,36,178,46],[181,0,181,60],[182,1,182,32],[175,3,176,13],[175,14,176,24],[175,25,176,35],[175,36,176,46],[175,47,175,57],[176,47,176,57],[190,28,191,34],[189,37,189,48],[190,37,191,48],[189,51,189,58],[190,51,191,58],[184,3,184,10],[185,3,185,16],[184,24,184,49],[189,4,189,15],[189,28,189,34],[190,4,190,6],[190,7,190,9],[190,10,190,15],[191,4,191,6],[191,7,191,9],[191,10,191,15],[189,18,189,20],[189,21,189,26],[190,21,191,26],[190,18,191,20],[198,1,198,9],[197,36,197,44],[194,1,194,37],[195,1,195,19],[195,22,195,39],[195,42,195,58],[196,1,196,19],[196,22,196,39],[196,42,196,58],[197,1,197,9],[198,12,198,27],[197,30,197,33],[197,12,197,27],[198,30,198,33],[198,36,198,45],[197,54,197,58],[197,48,197,51],[198,48,198,51],[198,54,198,58],[209,2,209,56],[210,2,210,56],[212,2,212,27],[212,31,212,56],[213,2,213,27],[213,31,213,56],[202,1,202,23],[199,38,199,50],[200,38,200,50],[204,0,204,60],[206,2,206,27],[206,31,206,56],[207,31,207,56],[207,2,207,27],[200,1,200,13],[200,20,200,32],[222,0,222,60],[199,1,199,13],[199,20,199,32],[223,2,223,60],[224,2,224,60],[228,1,229,13],[228,14,228,55],[228,56,229,59],[229,14,229,18],[229,19,229,41],[229,42,229,48],[229,49,229,55],[230,1,230,13],[230,14,230,18],[230,19,230,41],[230,42,230,48],[230,49,230,55],[230,56,232,59],[231,1,231,13],[231,14,231,18],[231,19,231,41],[231,42,231,48],[231,49,231,55],[232,1,232,13],[232,14,232,18],[232,19,232,41],[232,42,232,48],[232,49,232,55],[233,1,233,13],[234,1,234,13],[235,1,235,13],[236,1,236,13],[237,1,237,13],[238,1,238,13],[239,1,239,13],[233,14,233,18],[236,14,236,18],[239,14,239,18],[233,56,233,59],[234,56,234,59],[235,56,237,59],[238,56,240,59],[236,19,236,41],[236,42,236,48],[236,49,236,55],[237,14,237,18],[237,19,237,41],[237,42,237,48],[237,49,237,55],[238,14,238,18],[238,19,238,41],[238,42,238,48],[238,49,238,55],[233,19,233,41],[233,42,233,48],[233,49,233,55],[234,14,234,18],[234,19,234,41],[234,42,234,48],[234,49,234,55],[235,14,235,18],[235,19,235,41],[241,4,241,40],[239,19,239,41],[239,42,239,48],[239,49,239,55],[240,14,240,18],[240,19,240,41],[240,42,240,48],[240,49,240,55],[240,1,240,13],[235,42,235,48],[235,49,235,55],[242,0,292,59],[618,0,618,60],[619,0,619,60],[620,0,626,16],[620,17,620,49],[621,17,621,49],[622,17,622,49],[623,17,623,49],[624,17,624,49],[625,17,625,49],[626,17,626,49],[620,50,620,60],[621,50,621,60],[622,50,622,60],[623,50,623,60],[624,50,624,60],[625,50,625,60],[626,50,626,60],[305,52,305,60],[628,50,628,60],[629,50,629,60],[627,0,627,49],[627,50,627,60],[630,0,631,16],[630,17,630,49],[630,50,630,60],[631,17,631,49],[631,50,631,60],[632,0,633,16],[632,17,632,49],[632,50,632,60],[633,17,633,49],[633,50,633,60],[636,0,638,16],[636,17,636,49],[636,50,636,60],[638,17,638,49],[638,50,638,60],[639,0,639,60],[637,17,637,49],[637,50,637,60],[634,0,634,49],[635,0,635,49],[634,50,634,60],[635,50,635,60],[697,0,697,14],[698,0,698,14],[700,0,700,14],[702,0,702,4],[702,5,702,12],[702,14,702,17],[702,18,702,31],[702,33,702,37],[702,38,702,57],[664,2,664,25],[664,26,664,40],[665,0,665,1],[665,2,665,25],[665,26,665,40],[674,41,674,50],[674,51,674,60],[667,0,667,60],[668,51,668,60],[668,20,668,29],[668,0,668,19],[670,0,670,1],[669,30,669,31],[670,30,670,31],[669,2,669,19],[670,2,670,19],[704,0,704,4],[704,5,704,18],[704,21,704,23],[704,25,704,37],[704,39,704,42],[704,44,704,59],[698,15,698,59],[640,0,640,60],[641,0,641,60],[642,0,642,60],[643,0,643,60],[644,0,644,60],[645,0,645,60],[646,0,646,60],[689,0,689,60],[690,0,690,60],[691,0,691,60],[692,0,692,60],[693,0,693,60],[694,0,694,60],[695,0,695,60],[696,0,696,14],[661,51,661,60],[670,58,670,60],[669,51,669,57],[662,2,662,25],[662,0,662,1],[662,26,662,40],[663,0,663,1],[663,2,663,25],[663,26,663,40],[664,0,664,1],[712,6,712,30],[716,0,716,51],[716,52,716,59],[718,0,718,5],[718,6,718,59],[726,0,726,3],[726,4,726,14],[726,15,726,59],[728,0,728,60],[731,0,731,10],[731,12,731,27],[706,0,706,2],[706,3,706,6],[706,8,706,9],[706,10,706,12],[706,14,706,15],[706,16,706,17],[706,19,706,20],[706,21,706,23],[706,25,706,28],[706,30,706,36],[706,38,706,45],[706,47,706,56],[708,0,708,10],[708,11,708,21],[708,23,708,25],[708,26,708,36],[708,38,708,42],[708,43,708,59],[724,22,724,46],[733,13,733,22],[733,23,733,34],[733,0,733,12],[731,43,731,46],[731,47,731,56],[735,0,735,7],[720,12,720,59],[722,12,722,59],[98,1,102,13],[90,1,94,13],[710,0,710,38],[710,40,710,59],[712,0,712,5],[714,0,714,19],[714,20,714,30],[661,41,661,50],[661,0,661,40],[662,41,662,50],[662,51,662,60],[663,41,663,50],[663,51,663,60],[664,41,664,50],[664,51,664,60],[670,32,670,50],[669,27,669,29],[670,27,670,29],[669,20,669,26],[670,20,670,26],[669,58,669,60],[668,30,668,50],[669,0,669,1],[669,32,669,50],[674,2,674,40],[674,0,674,1],[670,51,670,57],[173,1,173,58],[172,1,172,58],[167,41,167,43],[295,0,295,34],[295,35,295,60],[296,0,296,34],[296,35,296,43],[316,35,316,43],[316,44,316,51],[316,52,316,60],[303,44,303,51],[303,52,303,60],[304,0,304,34],[304,35,304,43],[304,44,304,51],[304,52,304,60],[305,0,305,34],[305,35,305,43],[305,44,305,51],[306,0,306,34],[306,35,306,43],[306,44,306,51],[306,52,306,60],[307,0,307,34],[307,35,307,43],[307,44,307,51],[307,52,307,60],[303,0,303,34],[303,35,303,43],[675,2,675,40],[676,2,676,40],[679,2,679,40],[680,2,680,40],[681,2,681,40],[677,0,677,60],[678,0,678,40],[682,0,682,40],[679,0,679,1],[679,41,679,50],[679,51,679,60],[680,0,680,1],[680,41,680,50],[680,51,680,60],[681,0,681,1],[681,41,681,50],[681,51,681,60],[682,41,682,50],[682,51,682,60],[675,0,675,1],[675,41,675,50],[675,51,675,60],[676,0,676,1],[676,41,676,50],[676,51,676,60],[678,41,678,50],[678,51,678,60],[696,15,696,59],[686,0,686,60],[685,0,685,60],[684,0,684,60],[660,0,660,60],[592,3,592,60],[591,3,591,60],[590,3,590,60],[589,0,589,60],[588,3,588,60],[587,0,587,60],[465,0,465,60],[539,0,539,29],[539,30,539,34],[539,35,539,41],[539,42,539,49],[539,50,539,54],[539,55,539,60],[612,0,612,4],[612,5,612,58],[672,41,672,50],[672,0,672,40],[673,41,673,50],[672,51,673,60],[673,0,673,27],[665,41,665,50],[665,51,665,60],[516,42,516,50],[516,51,516,60],[514,0,514,3],[514,4,514,41],[514,42,514,50],[335,35,335,60],[320,0,320,34],[320,35,320,43],[320,44,320,51],[320,52,320,60],[321,0,321,34],[321,35,321,43],[321,44,321,51],[321,52,321,60],[322,0,322,34],[322,35,322,43],[322,44,322,51],[322,52,322,60],[327,0,327,34],[327,35,327,43],[308,0,308,34],[308,35,308,43],[308,44,308,51],[308,52,308,60],[310,0,310,34],[310,35,310,43],[310,44,310,51],[310,52,310,60],[311,0,311,34],[311,35,311,43],[311,44,311,51],[311,52,311,60],[312,0,312,34],[312,35,312,43],[312,44,312,51],[312,52,312,60],[316,0,316,34],[336,0,336,34],[336,35,336,43],[336,44,336,51],[336,52,336,60],[337,0,337,34],[337,35,337,43],[337,44,337,51],[337,52,337,60],[332,52,332,60]],"merged_total":1657,"flags":["merged_cut"]}
[null,null,null,null,null,null,"MINISTERUL AGRICULTURII ŞI DEZVOLTĂRII RURALE"]
[null,null,null,null,null,null,"AGENŢIA PENTRU FINANŢAREA INVESTIŢIILOR RURALE"]
[null,null,null,null,null,null,null,null,null,null,null,null,null,null,null,null,null,null,null,null,null,null,null,null,null,null,null,null,null,null,null,null,null,null,null,null,null,null,null,null,null,null,null,null,null,null,null,null,null,null,"V1/2018"]
[null,null,null,null,null,null,null,null,null,null,null,null,null,null,null,null,null,null,null,null,null,null,null,null,null,null,null,null,null,null,null,null,null,null,null,null,null,null,null,null,null,null,"SECŢIUNE GENERALĂ"]
[]
["DATE DE ÎNREGISTRARE",null,null,null,null,null,null,null,null,null,null,null,null,null,null,null,null,null,null,null,null,null,null,null,null,null,null,null,null,null,null,null,null,null,null,null,"NUME ŞI PRENUME DIRECTOR GENERAL"]
[null,null,null,null,null,null,null,null,null,null,null,null,null,null,null,null,null,null,null,null,null,null,null,null,null,null,null,null,null,null,null,null,null,null,null,null,"ADJUNCT CRFIR"]
["Se completează de către Agenția pentru Finanțarea Investițiilor Rurale -Centrul"]
["Regional- Programul FEADR 2014-2020"]
[]
["CRFIR",null,null,null,null,null,null,null,null,null,null,null,null,null,null,null,null,null,null,null,null,null,null,null,null,null,null,null,null,null,null,null,null,null,null,null,"Semnătura Director General Adjunct CRFIR"]
[null,null,null,null,null,null,null,null,null,null,null,null,null,null,null,null,null,null,null,null,null,null,null,null,null,null,null,null,null,null,null,null,null,null,null,null,"Ştampila CRFIR"]
["Număr "]
["înregistrare"]
[]
[]
[]
[]
["Data Înregistrării"]
["Numele şi prenumele persoanei care înregistrează"]
["Semnătura:"]
["Data primirii cererii de finanţare la contractare:"]
["Se completează de către solicitant"]
["A PREZENTARE GENERALĂ"]
[]
[null,"A1 Măsura",null,null,null,null,null,null,null,null,"Sub-măsura 19.2"]
[null,null,null,null,null,null,null,null,null,null," - M11/6C Investiții pentru asigurarea de internet de bandă largă"]
[null,"A2 Denumire solicitant:"]
[]
[null,"A3 Titlu proiect:"]
[]
[]
[]
[]
[null,"A4 Descrierea succintă a proiectului:"]
[]
[]
[]
[]
[]
[]
[]
[]
[]
[]
[]
[]
[]
[]
[]
[]
[]
[]
[]
[]
[]
[]
[]
[]
[]
[null,null,"A5 Amplasarea proiectului:"]
[]
["Regiunea de dezvoltare:",null,null,null,null,null,null,null,null,null,null,null,null,null,null,null,null,null,null,null,null,null,null,null,null,null,null,"Judeţ:"]
[]
[null,"Obiectivele investiţiei",null,null,null,null,null,null,null,null,null,null,null,null,null,"Judeţ",null,null,null,null,null,null,null,null,null,null,null,"Comună/Oraş",null,null,null,null,null,null,null,null,null,null,null,"Sat/Sector",null,null,null,null,null,null,null,null,null,null,"Sat/Sector"]
[]
[]
[]
[]
[]
[]
[]
[]
[]
[]
[]
[]
[]
[]
[]
[]
[]
[]
[]
[]
[]
[]
[]
[]
[]
[]
[]
[]
[]
[]
[]
[]
[]
[]
[]
[]
[]
[]
[]
[]
[null,"A6 Date despre tipul de proiect şi beneficiar:",null,null,null,null,null,null,null,null,null,null,null,null,null,null,null,null,null,null,null,null,null,null,null,null,null,null,null,null,null,null,null," agenți economici (IMM) care activează sau urmează"]
[null,null,null,null,null,null,null,null,null,null,null,null,null,null,null,null,null,null,null,null,null,null,null,null,null,null,null,null,null,null,null,null,null,null,null,"să activeze în domeniul TIC"]
[null,"A6.1",null,null,null,null,"Investiţie nouă",null,null,null,null,null,null,null,null,null,null,null,null,null,null,null,null,null,null,null,null,null,"A6.2",null,null,null,null," entități publice, ADI, APL"]
[null,null,null,null,null,null,"Lucrări de intervenție",null,null,null,null,null,null,null,null,null,null,null,null,null,null,null,null,null,null,null,null,null,null,null,null,null,null," GAL"]
[]
[null,"A6.3",null,null,null,"Prescorare",null,null,null,null,null,null,null,null,null,null,null,null,"puncte",null,null,null,null,null,null,null,null,null,"A6.4",null,null,"Alocare financiară",null,null,null,null,null,null,null,null,"     Restul Teritoriului (N)"]
[null,"A6.3.1 Detaliere criterii de selecţie îndeplinite:"]
[]
[]
[]
[]
[null,"A7 Date despre consultant:"]
[null,"Denumire: "]
[null,"Cod Unic de Înregistrare / Codul de"]
[null,"Înregistrare Fiscală",null,null,null,null,null,null,null,null,null,null,null,null,null,null,null,null,null,null,null,null,null,null,null,null,null,null,null,null,"Număr de înregistrare în registrul comerțului"]
[]
[null,"A8 Date despre proiectant:"]
[null,"Denumire: "]
[null,"Cod Unic de Înregistrare / Codul de"]
[null,"Înregistrare Fiscală",null,null,null,null,null,null,null,null,null,null,null,null,null,null,null,null,null,null,null,null,null,null,null,null,null,null,null,null,"Număr de înregistrare în registrul comerțului"]
[]
[]
["B INFORMAŢII PRIVIND SOLICITANTUL"]
["B1 Descrierea solicitantului"]
[null,"B1.1 Informaţii privind solicitantul"]
[null,"Data înființării",null,null,null,null,null,null,null,null,null,null,null,null,null,null,null,null,null,"Cod Unic de Înregistrare și/sau Codul de",null,null,null,null,null,null,null,null,null,null,null,null,null,null,null,null,null,null,null,null,null,null,null,"Statut juridic al solicitantului"]
[null,null,null,null,null,null,null,null,null,null,null,null,null,null,null,null,null,null,null,"Înregistrare Fiscală"]
[]
[]
[null,"Număr de înregistrare în Registrul Comerțului"]
[null,"Codul CAEN al activității finanțate prin proiect"]
[]
[null,"Codul unic de înregistrare APIA",null,null,null,null,null,null,null,null,null,null,null,null,null,null,null,null,null,null,null,null,null,null,null,null,null,null,null,null,null,null,null,null,null,null,"Anul atribuirii codului"]
[]
[null,"Nr. comune ADI"]
[]
[null,"Denumire comune solicitant",null,null,null,null,null,null,null,null,null,null,null,null,null,null,null,null,null,null,null,null,null,null,null,null,null,null,"Cod Unic de Înregistrare / Cod de Înregistrare Fiscală"]
[]
[]
[null,"Denumire comune solicitant",null,null,null,null,null,null,null,null,null,null,null,null,null,null,null,null,null,null,null,null,null,null,null,null,null,null,"Cod Unic de Înregistrare / Cod de Înregistrare Fiscală"]
[]
[]
[null,"Denumire comune solicitant",null,null,null,null,null,null,null,null,null,null,null,null,null,null,null,null,null,null,null,null,null,null,null,null,null,null,"Cod Unic de Înregistrare / Cod de Înregistrare Fiscală"]
[]
[]
[null,"Denumire comune solicitant",null,null,null,null,null,null,null,null,null,null,null,null,null,null,null,null,null,null,null,null,null,null,null,null,null,null,"Cod Unic de Înregistrare / Cod de Înregistrare Fiscală"]
[]
[]
[null,"Denumire comune solicitant",null,null,null,null,null,null,null,null,null,null,null,null,null,null,null,null,null,null,null,null,null,null,null,null,null,null,"Cod Unic de Înregistrare / Cod de Înregistrare Fiscală"]
[]
[]
[null,"Denumire comune solicitant",null,null,null,null,null,null,null,null,null,null,null,null,null,null,null,null,null,null,null,null,null,null,null,null,null,null,"Cod Unic de Înregistrare / Cod de Înregistrare Fiscală"]
[]
[]
[null,"Denumire comune solicitant",null,null,null,null,null,null,null,null,null,null,null,null,null,null,null,null,null,null,null,null,null,null,null,null,null,null,"Cod Unic de Înregistrare / Cod de Înregistrare Fiscală"]
[]
[]
[null,"B1.2 Sediul social / Domiciliul stabil al solicitantului / Reşedinţa din România"]
[null,"Judeţ",null,null,null,null,null,null,null,null,null,null,null,null,null,null,null,null,null,null,null,null,"Localitate",null,null,null,null,null,null,null,null,null,null,null,null,null,null,null,null,null,null,null,"Sat"]
[]
[null,"Cod Poştal",null,null,null,null,null,null,null,null,null,null,null,null,null,"Strada",null,null,null,null,null,null,null,null,null,null,null,null,null,null,null,null,null,null,null,null,null,null,null,null,null,null,null,null,null,null,null,null,null,null,null,null,"Nr."]
[]
[null,"Bloc",null,null,null,null,null,null,null,null,null,null,null,null,null,null,null,"Scara"]
[]
[null,"Telefon fix/ mobil",null,null,null,null,null,null,null,null,null,null,null,null,null,null,null,null,null,null,"Fax",null,null,null,null,null,null,null,null,null,null,null,null,null,null,null,"E-mail"]
[]
[]
[null,"B1.3 Numele şi prenumele reprezentantului legal şi funcţia acestuia în cadrul organizaţiei, precum şi"]
[null,"specimenul de semnatură:"]
[]
[null,null,null,"Numele",null,null,null,null,null,null,null,null,null,null,"Prenumele",null,null,null,null,null,null,null,null,null,null,"Funcţia",null,null,null,null,null,null,null,null,null,null,"Reprezentant legal",null,null,null,null,null,null,null,null,null,null,"Specimen de"]
[null,null,null,null,null,null,null,null,null,null,null,null,null,null,null,null,null,null,null,null,null,null,null,null,null,null,null,null,null,null,null,null,null,null,null,null,null,null,null,null,null,null,null,null,null,null,null,"semnătură"]
[]
[null,null,null,null,null,null,null,null,null,null,null,null,null,null,null,null,null,null,null,null,null,null,null,null,null,null,null,null,null,null,null,null,null,null,null,null,"LEGAL"]
[]
[]
["B2 Informaţii referitoare la reprezentantul legal de proiect"]
[null,"B2.1 Date de identitate ale reprezentantului legal de proiect"]
[]
[null,null,null,"Data naşterii",null,null,null,null,null,null,null,null,null,null,null,null,null,null,null,null,null,null,null,null,"Cod numeric personal"]
[]
[]
[]
[]
[null,null,null,null,"Act de identitate",null,null,null,null,null,null,null,null,null,null,null,null,null,"Seria",null,null,"Nr.",null,null,null,null,null,null,"Eliberat la data de:",null,null,null,null,null,null,null,null,"de:",null,null,null,null,null,null,null,null,null,null,null,null,null,"Valabil până la:"]
[null,null,null,null,"B.I.",null,null,"C.I.",null,null,"Paşaport"]
[]
[]
[]
[null,"B2.2 Domiciliul stabil al reprezentantului legal de proiect"]
[null,"Judeţ",null,null,null,null,null,null,null,null,null,null,null,null,null,null,null,null,null,null,null,null,"Localitate",null,null,null,null,null,null,null,null,null,null,null,null,null,null,null,null,null,null,null,"Sat"]
[]
[null,"Cod Poştal",null,null,null,null,null,null,null,null,null,null,"Strada",null,null,null,null,null,null,null,null,null,null,null,null,null,null,null,null,null,"Nr.",null,null,null,null,null,"Bloc",null,null,null,null,null,null,null,null,null,null,null,"Scara",null,null,null,null,null,"Ap."]
[]
[null,"Telefon fix",null,null,null,null,null,null,null,null,null,null,null,null,null,null,null,null,null,null,"Telefon mobil",null,null,null,null,null,null,null,null,null,null,null,null,null,null,null,null,null,"Fax"]
[]
[null,"E-mail"]
[]
[]
["B3 Informaţii privind contul bancar pentru proiect "]
[]
[null,null,"B3.1 Denumirea Băncii",null,null,null,null,null,null,null,null,null,null,null,null,null,null,null,null,null,null,null,null,null,null,null,null,null,null,null,null,"Denumirea Sucursalei/Filialei"]
[]
[]
[null,null,"B3.2 Adresa Băncii/Sucursalei"]
[]
[]
[null,null,"B3.3 Cod IBAN",null,null,null,null,null,null,null,null,null,null,null,null,null,null,null,null,null,null,null,null,null,null,null,null,null,null,null,null,"B3.4 Titularul contului bancar"]
[]
[]
[]
[]
[]
[]
[]
[]
[]
["C FINANȚĂRI NERAMBURSABILE OBȚINUTE, SAU SOLICITATE ?"]
[null,null,"Dacă au fost obținute finanțări nerambursabile sau au fost solicitate și au fost obținute parțial, se vor detalia prin completarea"]
[null,null,"tabelului de mai jos."]
[]
[null,null,null,null,null,null,null,null,null,null,"DA",null,null,null,null,null,null,null,"NU"]
[]
[null,"DENUMIRE PROGRAM FINANȚARE",null,null,null,null,null,null,null,null,null,null,null,null,"DA",null,null,null,null,null,null,null,null,null,null,null,null,null,null,null,null,null,null,null,null,null,null,null,null,null,null,null,null,null,null,null,null,null,null,null,null,null,null,null,null,null,"NU"]
[null,null,null,null,null,null,null,null,null,null,null,null,null,null,"Număr proiecte",null,null,null,null,"Titlul Proiectui și numărul contractului de finanțare ",null,null,null,null,null,null,null,null,null,null,null,null,null,null,null,null,null,null,null,null,null,null,"Data finalizării\nll/zz/aaaa",null,null,null,null,null,null,"Valoarea\nsprijinului\n(EUR)"]
[null,"Program Naţional*"]
[null,"Program Naţional*"]
[null,"Program Naţional*"]
[null,"SAPARD"]
[null,"FEADR"]
[null,"Alte programe europene*"]
[null,"Alte programe europene*"]
[null,"Alte programe europene*"]
[null,"Alte programe internaționale*"]
[null,"Alte programe internaționale*"]
[null,"Alte programe internaționale*"]
[null,null,null,null,"* se completează de către solicitant cu denumirea programului"]
["REGULI DE COMPLETARE\n\nCâmpurile \"Numele şi prenumele persoanei care înregistrează. Semnătura\", se vor completa după data primirii în format letric a acesteia împreună cu documentele justificative.\nCompletati devizele aferente capitolelor de cheltuieli, defalcat pe cheltuieli eligibile și neeligibile prin completarea tabelelor incluse în acest document, respectiv :\n1. Tabelul \"Deviz financiar_cap3\" cuprinde cheltuielile aferente capitolului 3 - Cheltuieli pentru proiectare și asistență tehnică, cheltuieli care trebuie să se regasească atât în Bugetul Indicativ (Tabel \"Buget indicativ\" din cererea de finanțare, partea specifică), cât și în Devizul General din Studiul de Fezabilitate/Documentația de avizare a Lucrărilor pentru Intervenții.\n2. Tabelul \"Devize obiect\" cuprinde formatul cadru al devizului pe obiect, iar solicitantul va completa atâtea devize pe obiect câte obiecte definite de proiectant sunt incluse în proiect. Suma tuturor devizelor pe obiect trebuie să se regăsească atât în Bugetul Indicativ (tabelul \"Buget indicativ\" din cererea de finanțare, partea specifică), cât și în Devizul General din Studiul de Fezabilitate/Documentația de avizare a Lucrărilor pentru Intervenții. În cazul în care proiectul de investiții presupune mai multe devize pe obiect, solicitantul va crea în documentul curent câte o copie a tabelului \"Devize obiect\" pentru fiecare deviz pe obiect și va detalia cheltuielile eligibile și neeligibile pe fiecare în parte.\n3. Tabelul \"cap.2+cap.5\" cuprinde cheltuieli aferente capitolelor 2 și 5 și trebuie să se regasească atât în Bugetul Indicativ (tabel \"Buget indicativ\" din cererea de finanțare, partea specifică), cât și Devizul General din Studiul de Fezabilitate/Documentația de avizare a Lucrărilor pentru Intervenții.\n4. Câmpurile \"Prescorare\" şi \"Detaliere criterii de selecţie îndeplinite\" de la sectiunea A6 sunt obligatorii.\n\n5. Pentru proiectele care vizeaza 2 componente in urmatoarele variante:\n• Modernizare o componenta/extindere componenta complementara\n• Infiintare o componenta/extindere componenta complementara\n• Infiintare o componenta/modernizare componenta complementara\n• Modernizare o componenta/modernizare componenta complementara\nLa punctul A6.1 se vor considera lucrari de interventie .\n6. Pentru proiectele care vizeaza 2 componente, ambele extindere, la punctul A6.1 se va considera investitie noua.\n\n*Documentele de pe coloana DEPUNERE - Obligatoriu daca proiectul o impune\", din secțiunea E – Lista documentelor anexate - trebuie bifate şi anexate dacă proiectul o impune.\n\n*Trebuie bifate si anexate toate documentele de pe coloana “DEPUNERE - Obligatoriu pentru toate proiectele” din secțiunea E – Lista documentelor anexate.\n\n\n"]
[]
[]
[]
[]
[]
[]
[]
[]
[]
[]
[]
[]
[]
[]
[]
[]
[]
[]
[]
[]
[]
[]
[]
[]
[]
[]
[]
[]
[]
[]
[]
[]
[]
[]
[]
[]
[]
[]
[]
[]
[]
[]
[]
[]
[]
[]
[]
[]
[]
[]
[]
[null,"Buget Indicativ - HG 907/2016"]
["MINISTERUL AGRICULTURII ŞI DEZVOLTĂRII RURALE"]
["AGENŢIA PENTRU FINANŢAREA INVESTIŢIILOR RURALE"]
[]
[]
[null,null,null,null,null,null,null,null,null,null,null,null,null,null,null,"Curs EURO",null,null,null,null,null,null,null,null,null,null,null,null,null,null,"Data întocmirii devizului general din SF/DALI"]
[]
["Măsura"]
["Denumirea capitolelor de cheltuieli",null,null,null,null,null,null,null,null,null,null,null,null,null,null,null,null,null,null,null,null,null,null,null,null,null,null,null,null,null,null,null,null,null,null,"Cheltuieli eligibile",null,null,null,null,null,null,null,null,"Cheltuieli neeligibile",null,null,null,null,null,null,null,"Total"]
[null,null,null,null,null,null,null,null,null,null,null,null,null,null,null,null,null,null,null,null,null,null,null,null,null,null,null,null,null,null,null,null,null,null,null,"EURO",null,null,null,null,null,null,null,null,"EURO",null,null,null,null,null,null,null,"EURO"]
[1,null,null,null,null,null,null,null,null,null,null,null,null,null,null,null,null,null,null,null,null,null,null,null,null,null,null,null,null,null,null,null,null,null,null,2,null,null,null,null,null,null,null,null,3,null,null,null,null,null,null,null,4]
["Capitolul 1 Cheltuieli pentru obtinerea şi amenajarea terenului - total, din care:",null,null,null,null,null,null,null,null,null,null,null,null,null,null,null,null,null,null,null,null,null,null,null,null,null,null,null,null,null,null,null,null,null,null,{"$f":"SUM(AJ308:AJ310)","v":0},null,null,null,null,null,null,null,null,{"$f":"SUM(AS307:AS310)","v":0},null,null,null,null,null,null,null,{"$f":"SUM(AJ306:AZ306)","v":0}]
["1.1 Obţinerea terenului",null,null,null,null,null,null,null,null,null,null,null,null,null,null,null,null,null,null,null,null,null,null,null,null,null,null,null,null,null,null,null,null,null,null,null,null,null,null,null,null,null,null,null,null,null,null,null,null,null,null,null,{"$f":"SUM(AJ307:AZ307)","v":0}]
["1.2 Amenajarea terenului",null,null,null,null,null,null,null,null,null,null,null,null,null,null,null,null,null,null,null,null,null,null,null,null,null,null,null,null,null,null,null,null,null,null,null,null,null,null,null,null,null,null,null,null,null,null,null,null,null,null,null,0]
["1.3 Amenajari pentru protecţia mediului şi aducerea terenului la starea iniţială",null,null,null,null,null,null,null,null,null,null,null,null,null,null,null,null,null,null,null,null,null,null,null,null,null,null,null,null,null,null,null,null,null,null,null,null,null,null,null,null,null,null,null,null,null,null,null,null,null,null,null,0]
["1.4 Cheltuieli pentru relocarea/protecţia utilităţilor",null,null,null,null,null,null,null,null,null,null,null,null,null,null,null,null,null,null,null,null,null,null,null,null,null,null,null,null,null,null,null,null,null,null,null,null,null,null,null,null,null,null,null,null,null,null,null,null,null,null,null,{"$f":"SUM(AJ310:AZ310)","v":0}]
["Capitolul 2 Cheltuieli pentru asigurarea utilităţilor necesare obiectivului de investiții",null,null,null,null,null,null,null,null,null,null,null,null,null,null,null,null,null,null,null,null,null,null,null,null,null,null,null,null,null,null,null,null,null,null,null,null,null,null,null,null,null,null,null,null,null,null,null,null,null,null,null,0]
["Capitolul 3 Cheltuieli pentru proiectare şi asistenţă tehnică - total, din care:",null,null,null,null,null,null,null,null,null,null,null,null,null,null,null,null,null,null,null,null,null,null,null,null,null,null,null,null,null,null,null,null,null,null,{"$f":"AJ313+AJ317+AJ318+AJ319+AJ320+AJ328+AJ331","v":0},null,null,null,null,null,null,null,null,{"$f":"AS313+AS317+AS318+AS327+AS319+AS320+AS328+AS331","v":0},null,null,null,null,null,null,null,0]
["3.1 Studii",null,null,null,null,null,null,null,null,null,null,null,null,null,null,null,null,null,null,null,null,null,null,null,null,null,null,null,null,null,null,null,null,null,null,{"$f":"SUM(AJ314:AJ316)","v":0},null,null,null,null,null,null,null,null,{"$f":"SUM(AS314:AS316)","v":0},null,null,null,null,null,null,null,{"$f":"SUM(AJ313:AZ313)","v":0}]
["      3.1.1 Studii de teren",null,null,null,null,null,null,null,null,null,null,null,null,null,null,null,null,null,null,null,null,null,null,null,null,null,null,null,null,null,null,null,null,null,null,null,null,null,null,null,null,null,null,null,null,null,null,null,null,null,null,null,{"$f":"SUM(AJ314:AZ314)","v":0}]
["      3.1.2 Raport privind impactul asupra mediului",null,null,null,null,null,null,null,null,null,null,null,null,null,null,null,null,null,null,null,null,null,null,null,null,null,null,null,null,null,null,null,null,null,null,null,null,null,null,null,null,null,null,null,null,null,null,null,null,null,null,null,{"$f":"SUM(AJ315:AZ315)","v":0}]
["      3.1.3 Alte studii specifice",null,null,null,null,null,null,null,null,null,null,null,null,null,null,null,null,null,null,null,null,null,null,null,null,null,null,null,null,null,null,null,null,null,null,null,null,null,null,null,null,null,null,null,null,null,null,null,null,null,null,null,{"$f":"SUM(AJ316:AZ316)","v":0}]
["3.2 Documentații-suport și cheltuieli pentru obţinerea de avize, acorduri şi autorizaţii",null,null,null,null,null,null,null,null,null,null,null,null,null,null,null,null,null,null,null,null,null,null,null,null,null,null,null,null,null,null,null,null,null,null,null,null,null,null,null,null,null,null,null,null,null,null,null,null,null,null,null,0]
["3.3 Expertizare tehnică",null,null,null,null,null,null,null,null,null,null,null,null,null,null,null,null,null,null,null,null,null,null,null,null,null,null,null,null,null,null,null,null,null,null,null,null,null,null,null,null,null,null,null,null,null,null,null,null,null,null,null,0]
["3.4 Certificarea performanței energetice și auditul energetic al clădirilor",null,null,null,null,null,null,null,null,null,null,null,null,null,null,null,null,null,null,null,null,null,null,null,null,null,null,null,null,null,null,null,null,null,null,null,null,null,null,null,null,null,null,null,null,null,null,null,null,null,null,null,0]
["3.5 Proiectare",null,null,null,null,null,null,null,null,null,null,null,null,null,null,null,null,null,null,null,null,null,null,null,null,null,null,null,null,null,null,null,null,null,null,{"$f":"SUM(AJ321:AJ326)","v":0},null,null,null,null,null,null,null,null,{"$f":"SUM(AS321:AS326)","v":0},null,null,null,null,null,null,null,0]
["      3.5.1 Temă de proiectare",null,null,null,null,null,null,null,null,null,null,null,null,null,null,null,null,null,null,null,null,null,null,null,null,null,null,null,null,null,null,null,null,null,null,null,null,null,null,null,null,null,null,null,null,null,null,null,null,null,null,null,0]
["      3.5.2 Studiu de prefezabilitate",null,null,null,null,null,null,null,null,null,null,null,null,null,null,null,null,null,null,null,null,null,null,null,null,null,null,null,null,null,null,null,null,null,null,null,null,null,null,null,null,null,null,null,null,null,null,null,null,null,null,null,0]
["      3.5.3 Studiu de fezabilitate/documentație de avizare a lucrărilor de intervenții și deviz general",null,null,null,null,null,null,null,null,null,null,null,null,null,null,null,null,null,null,null,null,null,null,null,null,null,null,null,null,null,null,null,null,null,null,null,null,null,null,null,null,null,null,null,null,null,null,null,null,null,null,null,0]
["      3.5.4 Documentațiile tehnice necesare în vederea obținerii avizelor/acordurilor/autorizațiilor",null,null,null,null,null,null,null,null,null,null,null,null,null,null,null,null,null,null,null,null,null,null,null,null,null,null,null,null,null,null,null,null,null,null,null,null,null,null,null,null,null,null,null,null,null,null,null,null,null,null,null,{"$f":"SUM(AJ324:AZ324)","v":0}]
["      3.5.5 Verificarea tehnică de calitate a proiectului tehnic și a detaliilor de execuție",null,null,null,null,null,null,null,null,null,null,null,null,null,null,null,null,null,null,null,null,null,null,null,null,null,null,null,null,null,null,null,null,null,null,null,null,null,null,null,null,null,null,null,null,null,null,null,null,null,null,null,0]
["      3.5.6 Proiect tehnic și detalii de execuție",null,null,null,null,null,null,null,null,null,null,null,null,null,null,null,null,null,null,null,null,null,null,null,null,null,null,null,null,null,null,null,null,null,null,null,null,null,null,null,null,null,null,null,null,null,null,null,null,null,null,null,0]
["3.6 Organizarea procedurilor de achiziţie",null,null,null,null,null,null,null,null,null,null,null,null,null,null,null,null,null,null,null,null,null,null,null,null,null,null,null,null,null,null,null,null,null,null,null,null,null,null,null,null,null,null,null,null,null,null,null,null,null,null,null,{"$f":"SUM(AJ327:AZ327)","v":0}]
["3.7 Consultanță",null,null,null,null,null,null,null,null,null,null,null,null,null,null,null,null,null,null,null,null,null,null,null,null,null,null,null,null,null,null,null,null,null,null,{"$f":"AJ329","v":0},null,null,null,null,null,null,null,null,{"$f":"SUM(AS329:AS330)","v":0},null,null,null,null,null,null,null,{"$f":"SUM(AJ328:AZ328)","v":0}]
["      3.7.1 Managementul de proiect pentru obiectivul de investiții",null,null,null,null,null,null,null,null,null,null,null,null,null,null,null,null,null,null,null,null,null,null,null,null,null,null,null,null,null,null,null,null,null,null,null,null,null,null,null,null,null,null,null,null,null,null,null,null,null,null,null,{"$f":"SUM(AJ329:AZ329)","v":0}]
["      3.7.2 Auditul financiar",null,null,null,null,null,null,null,null,null,null,null,null,null,null,null,null,null,null,null,null,null,null,null,null,null,null,null,null,null,null,null,null,null,null,null,null,null,null,null,null,null,null,null,null,null,null,null,null,null,null,null,0]
["3.8 Asistența tehnică",null,null,null,null,null,null,null,null,null,null,null,null,null,null,null,null,null,null,null,null,null,null,null,null,null,null,null,null,null,null,null,null,null,null,{"$f":"AJ332+AJ335","v":0},null,null,null,null,null,null,null,null,{"$f":"AS332+AS335","v":0},null,null,null,null,null,null,null,0]
["      3.8.1 Asistență tehnică din partea proiectantului",null,null,null,null,null,null,null,null,null,null,null,null,null,null,null,null,null,null,null,null,null,null,null,null,null,null,null,null,null,null,null,null,null,null,{"$f":"SUM(AJ333:AJ334)","v":0},null,null,null,null,null,null,null,null,{"$f":"SUM(AS333:AS334)","v":0},null,null,null,null,null,null,null,{"$f":"SUM(AJ332:AZ332)","v":0}]
["            3.8.1.1 pe perioada de execuție a lucrărilor",null,null,null,null,null,null,null,null,null,null,null,null,null,null,null,null,null,null,null,null,null,null,null,null,null,null,null,null,null,null,null,null,null,null,null,null,null,null,null,null,null,null,null,null,null,null,null,null,null,null,null,{"$f":"SUM(AJ333:AZ333)","v":0}]
["            3.8.1.2 pentru participarea proiectantului la fazele incluse în programul de control al lucrărilor de execuție, avizat de către Inspectoratul de Stat în Construcții",null,null,null,null,null,null,null,null,null,null,null,null,null,null,null,null,null,null,null,null,null,null,null,null,null,null,null,null,null,null,null,null,null,null,null,null,null,null,null,null,null,null,null,null,null,null,null,null,null,null,null,0]
["      3.8.2 Dirigenție de șantier",null,null,null,null,null,null,null,null,null,null,null,null,null,null,null,null,null,null,null,null,null,null,null,null,null,null,null,null,null,null,null,null,null,null,null,null,null,null,null,null,null,null,null,null,null,null,null,null,null,null,null,0]
["Verificare încadrare cheltuieli capitolul 3",null,null,null,null,null,null,null,null,null,null,null,null,null,null,null,null,null,null,null,null,null,null,null,null,null,null,null,null,null,null,null,{"$f":"AJ306+AJ311+AJ337","v":0},{"$f":"IF(AG336=0,0,AI336)","v":0},{"$f":"AJ312*100/AG336","v":{"$error":"#DIV/0!"}},{"$f":"IF(AJ337=0,IF(AH336<=5,\"cheltuieli capitol 3 se incadreaza in limita de 5%\",\"cheltuieli capitol 3 nu se incadreaza în limita de 5%\"),IF(AH336<=10,\"cheltuieli capitol 3 se incadreaza in limita de 10%\",\"cheltuieli capitol 3 nu se incadreaza in limita de 10%\"))","v":"cheltuieli capitol 3 se incadreaza in limita de 5%"}]
["Capitolul 4 Cheltuieli pentru investiţia de bază - total, din care:",null,null,null,null,null,null,null,null,null,null,null,null,null,null,null,null,null,null,null,null,null,null,null,null,null,null,null,null,null,null,null,null,null,null,{"$f":"SUM(AJ338:AJ343)","v":0},null,null,null,null,null,null,null,null,{"$f":"SUM(AS338:AS343)","v":0},null,null,null,null,null,null,null,{"$f":"SUM(AJ337:AZ337)","v":0}]
["4.1 Construcţii şi instalaţii",null,null,null,null,null,null,null,null,null,null,null,null,null,null,null,null,null,null,null,null,null,null,null,null,null,null,null,null,null,null,null,null,null,null,null,null,null,null,null,null,null,null,null,null,null,null,null,null,null,null,null,{"$f":"SUM(AJ338:AZ338)","v":0}]
["4.2 Montaj utilaje, echipamente tehnologice şi funcţionale",null,null,null,null,null,null,null,null,null,null,null,null,null,null,null,null,null,null,null,null,null,null,null,null,null,null,null,null,null,null,null,null,null,null,null,null,null,null,null,null,null,null,null,null,null,null,null,null,null,null,null,0]
["4.3 Utilaje, echipamente tehnologice şi funcţionale care necesită montaj",null,null,null,null,null,null,null,null,null,null,null,null,null,null,null,null,null,null,null,null,null,null,null,null,null,null,null,null,null,null,null,null,null,null,null,null,null,null,null,null,null,null,null,null,null,null,null,null,null,null,null,0]
["4.4 Utilaje, echipamente tehnologice şi funcţionale care nu necesită montaj şi echipamente de transport",null,null,null,null,null,null,null,null,null,null,null,null,null,null,null,null,null,null,null,null,null,null,null,null,null,null,null,null,null,null,null,null,null,null,null,null,null,null,null,null,null,null,null,null,null,null,null,null,null,null,null,0]
["4.5 Dotări",null,null,null,null,null,null,null,null,null,null,null,null,null,null,null,null,null,null,null,null,null,null,null,null,null,null,null,null,null,null,null,null,null,null,null,null,null,null,null,null,null,null,null,null,null,null,null,null,null,null,null,0]
["4.6 Active necorporale",null,null,null,null,null,null,null,null,null,null,null,null,null,null,null,null,null,null,null,null,null,null,null,null,null,null,null,null,null,null,null,null,null,null,null,null,null,null,null,null,null,null,null,null,null,null,null,null,null,null,null,0]
["Capitolul 5 Alte cheltuieli - total, din care:",null,null,null,null,null,null,null,null,null,null,null,null,null,null,null,null,null,null,null,null,null,null,null,null,null,null,null,null,null,null,null,null,null,null,{"$f":"AJ345+AJ348+AJ355","v":0},null,null,null,null,null,null,null,null,{"$f":"AS345+AS348+AS354+AS355","v":0},null,null,null,null,null,null,null,0]
["5.1 Organizare de şantier",null,null,null,null,null,null,null,null,null,null,null,null,null,null,null,null,null,null,null,null,null,null,null,null,null,null,null,null,null,null,null,null,null,null,{"$f":"SUM(AJ346:AR347)","v":0},null,null,null,null,null,null,null,null,{"$f":"SUM(AS346:AZ347)","v":0},null,null,null,null,null,null,null,0]
["      5.1.1 Lucrări de construcţii şi instalaţii aferente organizării de şantier",null,null,null,null,null,null,null,null,null,null,null,null,null,null,null,null,null,null,null,null,null,null,null,null,null,null,null,null,null,null,null,null,null,null,null,null,null,null,null,null,null,null,null,null,null,null,null,null,null,null,null,0]
["      5.1.2 Cheltuieli conexe orgănizării şantierului",null,null,null,null,null,null,null,null,null,null,null,null,null,null,null,null,null,null,null,null,null,null,null,null,null,null,null,null,null,null,null,null,null,null,null,null,null,null,null,null,null,null,null,null,null,null,null,null,null,null,null,0]
["5.2 Comisioane, cote, taxe, costul creditului",null,null,null,null,null,null,null,null,null,null,null,null,null,null,null,null,null,null,null,null,null,null,null,null,null,null,null,null,null,null,null,null,null,null,{"$f":"SUM(AJ350:AR353)-AJ352","v":0},null,null,null,null,null,null,null,null,{"$f":"SUM(AS349:AZ353)","v":0},null,null,null,null,null,null,null,{"$f":"SUM(AJ348:AZ348)","v":0}]
["      5.2.1 Comisioanele și dobânzile aferente creditului băncii finanțatoare",null,null,null,null,null,null,null,null,null,null,null,null,null,null,null,null,null,null,null,null,null,null,null,null,null,null,null,null,null,null,null,null,null,null,null,null,null,null,null,null,null,null,null,null,null,null,null,null,null,null,null,0]
["      5.2.2 Cota aferentă ISC pentru controlul calității lucrărilor de construcții",null,null,null,null,null,null,null,null,null,null,null,null,null,null,null,null,null,null,null,null,null,null,null,null,null,null,null,null,null,null,null,null,null,null,null,null,null,null,null,null,null,null,null,null,null,null,null,null,null,null,null,0]
["      5.2.3 Cota aferentă ISC pentru controlul statului în amenajarea teritoriului, urbanism și pentru autorizarea lucrărilor de construcţii",null,null,null,null,null,null,null,null,null,null,null,null,null,null,null,null,null,null,null,null,null,null,null,null,null,null,null,null,null,null,null,null,null,null,null,null,null,null,null,null,null,null,null,null,null,null,null,null,null,null,null,{"$f":"SUM(AJ351:AZ351)","v":0}]
["      5.2.4 Cota aferentă Casei Sociale a Constructorilor - CSC",null,null,null,null,null,null,null,null,null,null,null,null,null,null,null,null,null,null,null,null,null,null,null,null,null,null,null,null,null,null,null,null,null,null,null,null,null,null,null,null,null,null,null,null,null,null,null,null,null,null,null,0]
["      5.2.5 Taxe pentru acorduri, avize conforme și autorizașia de construire/desființare",null,null,null,null,null,null,null,null,null,null,null,null,null,null,null,null,null,null,null,null,null,null,null,null,null,null,null,null,null,null,null,null,null,null,null,null,null,null,null,null,null,null,null,null,null,null,null,null,null,null,null,{"$f":"SUM(AJ353:AZ353)","v":0}]
["5.3 Cheltuieli diverse şi neprevăzute",null,null,null,null,null,null,null,null,null,null,null,null,null,null,null,null,null,null,null,null,null,null,null,null,null,null,null,null,null,null,null,null,null,null,null,null,null,null,null,null,null,null,null,null,null,null,null,null,null,null,null,{"$f":"SUM(AJ354:AZ354)","v":0}]
["5.4 Cheltuieli pentru informare și publicitate",null,null,null,null,null,null,null,null,null,null,null,null,null,null,null,null,null,null,null,null,null,null,null,null,null,null,null,null,null,null,null,null,null,null,null,null,null,null,null,null,null,null,null,null,null,null,null,null,null,null,null,{"$f":"SUM(AJ355:AZ355)","v":0}]
["Capitolul 6 Cheltuieli pentru darea în exploatare - total, din care:",null,null,null,null,null,null,null,null,null,null,null,null,null,null,null,null,null,null,null,null,null,null,null,null,null,null,null,null,null,null,null,null,null,null,{"$f":"AJ358","v":0},null,null,null,null,null,null,null,null,{"$f":"SUM(AS357:AS358)","v":0},null,null,null,null,null,null,null,0]
["6.1 Pregătirea personalului de exploatare",null,null,null,null,null,null,null,null,null,null,null,null,null,null,null,null,null,null,null,null,null,null,null,null,null,null,null,null,null,null,null,null,null,null,null,null,null,null,null,null,null,null,null,null,null,null,null,null,null,null,null,0]
["6.2 Probe tehnologice şi teste",null,null,null,null,null,null,null,null,null,null,null,null,null,null,null,null,null,null,null,null,null,null,null,null,null,null,null,null,null,null,null,null,null,null,null,null,null,null,null,null,null,null,null,null,null,null,null,null,null,null,null,0]
["TOTAL GENERAL",null,null,null,null,null,null,null,null,null,null,null,null,null,null,null,null,null,null,null,null,null,null,null,null,null,null,null,null,null,null,null,null,null,null,{"$f":"AJ306+AJ311+AJ312+AJ337+AJ344+AJ356","v":0},null,null,null,null,null,null,null,null,{"$f":"AS306+AS311+AS312+AS337+AS344+AS356","v":0},null,null,null,null,null,null,null,0]
["Verificare actualizare",null,null,null,null,null,null,null,null,null,null,null,null,null,null,null,null,null,null,null,null,null,null,null,null,null,null,null,null,null,null,{"$f":"AJ361*100/AJ359","v":{"$error":"#DIV/0!"}},null,null,{"$f":"IF(AJ359=0,0,AF360)","v":0},{"$f":"IF(AI360<=5,\"actualizare mai mică de 5% din valoarea eligibila\",\"actualizare mai mare de 5% din valoarea eligibila\")","v":"actualizare mai mică de 5% din valoarea eligibila"}]
["ACTUALIZARE Cheltuieli Eligibile (max 5%)",null,null,null,null,null,null,null,null,null,null,null,null,null,null,null,null,null,null,null,null,null,null,null,null,null,null,null,null,null,null,null,null,null,null,null,null,null,null,null,null,null,null,null,null,null,null,null,null,null,null,null,{"$f":"SUM(AJ361:AZ361)","v":0}]
["TOTAL GENERAL CU ACTUALIZARE",null,null,null,null,null,null,null,null,null,null,null,null,null,null,null,null,null,null,null,null,null,null,null,null,null,null,null,null,null,null,null,null,null,null,{"$f":"AJ359+AJ361","v":0},null,null,null,null,null,null,null,null,{"$f":"AS359","v":0},null,null,null,null,null,null,null,{"$f":"SUM(AJ362:AZ362)","v":0}]
["Valoare TVA",null,null,null,null,null,null,null,null,null,null,null,null,null,null,null,null,null,null,null,null,null,null,null,null,null,null,null,null,null,null,null,null,null,null,null,null,null,null,null,null,null,null,null,null,null,null,null,null,null,null,null,0]
[]
["TOTAL GENERAL inclusiv TVA",null,null,null,null,null,null,null,null,null,null,null,null,null,null,null,null,null,null,null,null,null,null,null,null,null,null,null,null,null,null,null,null,null,null,{"$f":"BA362+BA363","v":0}]
[null,null,null,null,null,null,null,null,null,null,null,null,null,null,null,null,null,null,null,null,null,null,null,null,null,null,null,null,null,null,null,null,null,null,null,"LEI",null,null,null,null,null,null,null,null,"EURO"]
["VALOARE TOTALĂ",null,null,null,null,null,null,null,null,null,null,null,null,null,null,null,null,null,null,null,null,null,null,null,null,null,null,null,null,null,null,null,null,null,null,{"$f":"AS367*W300","v":0},null,null,null,null,null,null,null,null,{"$f":"AJ365","v":0}]
["VALOARE ELIGIBILĂ",null,null,null,null,null,null,null,null,null,null,null,null,null,null,null,null,null,null,null,null,null,null,null,null,null,null,null,null,null,null,null,null,null,null,{"$f":"AS368*W300","v":0},null,null,null,null,null,null,null,null,{"$f":"AJ362+AJ363","v":0}]
["VALOARE NEELIGIBILĂ",null,null,null,null,null,null,null,null,null,null,null,null,null,null,null,null,null,null,null,null,null,null,null,null,null,null,null,null,null,null,null,null,null,null,{"$f":"AS369*W300","v":0},null,null,null,null,null,null,null,null,{"$f":"AS362+AS363","v":0}]
[]
["Plan Financiar",null,null,null,null,null,null,null,null,null,null,null,null,null,null,null,null,null,null,null,null,null,null,null,null,null,null,null,null,null,null,null,null,null,null,"Cheltuieli eligibile EURO",null,null,null,null,null,null,null,null,"Cheltuieli neeligibile EURO",null,null,null,null,null,null,null,"Total"]
["Ajutor public nerambursabil (contribuţie UE şi cofinanţare naţională)",null,null,null,null,null,null,null,null,null,null,null,null,null,null,null,null,null,null,null,null,null,null,null,null,null,null,null,null,null,null,null,null,null,null,null,null,null,null,null,null,null,null,null,null,null,null,null,null,null,null,null,{"$f":"SUM(AJ372:AZ372)","v":0}]
["Cofinanțare privată, din care:",null,null,null,null,null,null,null,null,null,null,null,null,null,null,null,null,null,null,null,null,null,null,null,null,null,null,null,null,null,null,null,null,null,null,{"$f":"SUM(AJ374:AJ375)","v":0},null,null,null,null,null,null,null,null,{"$f":"SUM(AS374:AS375)","v":0},null,null,null,null,null,null,null,0]
[null,null,null,null,null,null,null,null,null,null,null,null,null,null,null,"- autofinantare",null,null,null,null,null,null,null,null,null,null,null,null,null,null,null,null,null,null,null,null,null,null,null,null,null,null,null,null,null,null,null,null,null,null,null,null,0]
[null,null,null,null,null,null,null,null,null,null,null,null,null,null,null,"- imprumuturi",null,null,null,null,null,null,null,null,null,null,null,null,null,null,null,null,null,null,null,null,null,null,null,null,null,null,null,null,null,null,null,null,null,null,null,null,0]
["Buget local",null,null,null,null,null,null,null,null,null,null,null,null,null,null,null,null,null,null,null,null,null,null,null,null,null,null,null,null,null,null,null,null,null,null,null,null,null,null,null,null,null,null,null,null,null,null,null,null,null,null,null,0]
["TOTAL PROIECT",null,null,null,null,null,null,null,null,null,null,null,null,null,null,null,null,null,null,null,null,null,null,null,null,null,null,null,null,null,null,null,null,null,null,{"$f":"AJ372+AJ373+AJ376","v":0},null,null,null,null,null,null,null,null,{"$f":"AS373+AS376","v":0},null,null,null,null,null,null,null,0]
["Procent contribuţie publică",null,null,null,null,null,null,null,null,null,null,null,null,null,null,null,null,null,null,null,null,null,null,null,null,null,null,null,null,null,null,null,null,{"$f":"AJ372*100/AJ377","v":{"$error":"#DIV/0!"}},{"$f":"IF(AJ377=0,0,AH378)","v":0},{"$f":"AI378","v":0},null,null,null,null,null,null,null,"%"]
["Avans solicitat"]
["Procent avans solicitat ca procent din ajutorul public nerambursabil",null,null,null,null,null,null,null,null,null,null,null,null,null,null,null,null,null,null,null,null,null,null,null,null,null,null,null,null,null,null,null,null,null,{"$f":"AJ379*100/AJ372","v":{"$error":"#DIV/0!"}},{"$f":"IF(AJ372=0,0,AI380)","v":0},null,null,null,null,null,null,null,null,{"$f":"IF(AJ380<=50,\"Suma avans mai mica de 50% din ajutorul public\",\"Suma avans mai mare de 50% din ajutorul public\")","v":"Suma avans mai mica de 50% din ajutorul public"}]
[]
[]
[null,null,null,null,null,null,null,"MINISTERUL AGRICULTURII ŞI DEZVOLTĂRII RURALE"]
[null,null,null,null,null,null,null,null,null,null,null,null,null,null,null,null,null,null,null,null,null,null,null,null,null,null,null,null,null,null,null,null,null,null,null,null,null,null,null,null,null,null,"Anexa A1\nHG 907/2016"]
[null,null,null,null,null,null,null,"AGENŢIA PENTRU FINANŢAREA INVESTIŢIILOR RURALE"]
[]
[null,null,null,null,null,null,null,"Deviz financiar- Capitolul 3 - Cheltuieli pentru proiectare şi asistenţa tehnică - EURO"]
[]
["(Titlu deviz)"]
[]
["Nr.crt",null,null,null,"Specificaţie",null,null,null,null,null,null,null,null,null,null,null,null,null,null,null,null,null,null,null,null,null,null,null,null,null,null,null,null,null,null,null,null,null,null,null,null,null,"Valoare eligibilă",null,null,null,null,null,null,null,null,"Valoare\nneeligibilă"]
["3.1",null,null,null,"Cheltuieli pentru studii - total din care:",null,null,null,null,null,null,null,null,null,null,null,null,null,null,null,null,null,null,null,null,null,null,null,null,null,null,null,null,null,null,null,null,null,null,null,null,null,{"$f":"AQ393+AQ394+AQ395","v":0},null,null,null,null,null,null,null,null,{"$f":"AZ393+AZ394+AZ395","v":0}]
[null,null,null,null,"3.1.1 Studii de teren: studii geotehnice, geologice, hidrologice, hidrogeotehnice,fotogrammetrice, topografica şi de stabilitate ale\n terenului pe care se amplasează obiectivul de investiţie "]
[null,null,null,null,"3.1.2 Raport privind impactul asupra mediului"]
[null,null,null,null,"3.1.3 Studii de specialitate necesare în funcţie de specificul investiţiei"]
["3.2",null,null,null,"Documentaţii-suport şi cheltuieli pentru obţinerea de avize, acorduri şi autorizații",null,null,null,null,null,null,null,null,null,null,null,null,null,null,null,null,null,null,null,null,null,null,null,null,null,null,null,null,null,null,null,null,null,null,null,null,null,{"$f":"AQ397+AQ398+AQ399+AQ402+AQ403+AQ404+AQ405","v":0},null,null,null,null,null,null,null,null,{"$f":"AZ397+AZ398+AZ399+AZ400+AZ401+AZ402+AZ403+AZ404+AZ405","v":0}]
[null,null,null,null,"1. obţinerea/prelungirea valabilităţii ceritificatului de urbanism"]
[null,null,null,null,"2. obţinerea/prelungirea valabilităţii autorizaţiei de construire/desfiinţare"]
[null,null,null,null,"3. obţinerea avizelor şi acordurilor pentru racorduri şi branşamente la reţele publicede alimentare cu apă, canalizare, alimentare cu gaze, alimentare cu agent termic,energie electrică, telefonie\n\n"]
[null,null,null,null,"4. obţinerea certificatului de nomenclatură stradală şi adresă"]
[null,null,null,null,"5. întocmirea documentaţiei, obţinerea numărului cadastral provizoriu şi\nînregistrarea terenului în cartea funciară"]
[null,null,null,null,"6. obţinerea actului administrativ al autorităţii competente pentru protecţia mediului"]
[null,null,null,null,"7. obţinerea avizului de protecţie civilă"]
[null,null,null,null,"8. avizul de specialitate în cazul obiectivelor de patrimoniu"]
[null,null,null,null,"9. alte avize, acorduri şi autorizaţii"]
["3.3",null,null,null,"Cheltuieli pentru expertizarea tehnică a construcţiilor existente, a structurilor şi/sau, după caz, a proiectelor tehnice, inclusiv întocmirea de către expertul tehnic a raportului de expertiză tehnică",null,null,null,null,null,null,null,null,null,null,null,null,null,null,null,null,null,null,null,null,null,null,null,null,null,null,null,null,null,null,null,null,null,null,null,null,null,0,null,null,null,null,null,null,null,null,0]
["3.4",null,null,null,"Cheltuieli pentru certificarea performanţei energetice şi auditul energetic al clădirilor",null,null,null,null,null,null,null,null,null,null,null,null,null,null,null,null,null,null,null,null,null,null,null,null,null,null,null,null,null,null,null,null,null,null,null,null,null,0,null,null,null,null,null,null,null,null,0]
["3.5",null,null,null,"Cheltuieli pentru proiectare",null,null,null,null,null,null,null,null,null,null,null,null,null,null,null,null,null,null,null,null,null,null,null,null,null,null,null,null,null,null,null,null,null,null,null,null,null,{"$f":"AQ409+AQ410+AQ411+AQ412+AQ413+AQ414","v":0},null,null,null,null,null,null,null,null,{"$f":"AZ409+AZ410+AZ411+AZ412+AZ413+AZ414","v":0}]
[null,null,null,null,"3.5.1 Temă de proiectare"]
[null,null,null,null,"3.5.2 Studiu de prefezabilitate"]
[null,null,null,null,"3.5.3 Studiu de fezabilitate/documentaţie de avizare a lucrărilor de intervenţii şi deviz general"]
[null,null,null,null,"3.5.4 Documentaţiile tehnice necesare în vederea obţinerii avizelor / acordurilor / autorizaţiilor"]
[null,null,null,null,"3.5.5 Verificarea tehnică de calitate a proiectului tehnic şi a detaliilor de execuţie"]
[null,null,null,null,"3.5.6 Proiect tehnic şi detalii de execuţie"]
["3.6",null,null,null,"Cheltuieli aferente organizării şi derulării procedurilor de achiziţii publice",null,null,null,null,null,null,null,null,null,null,null,null,null,null,null,null,null,null,null,null,null,null,null,null,null,null,null,null,null,null,null,null,null,null,null,null,null,null,null,null,null,null,null,null,null,null,{"$f":"AZ416+AZ417+AZ418+AZ419","v":0}]
[null,null,null,null,"1. Cheltuieli aferente întocmirii documentaţiei de atribuire şi multiplicării acesteia (exclusiv cele cumpărate de ofertanţi)"]
[null,null,null,null,"2. Cheltuieli cu onorariile, transportul, cazarea şi diurna membrilor desemnaţi în comisiile de evaluare"]
[null,null,null,null,"3. Anunţuri de intenţie, de participare şi de atribuire a contractelor, corespondenţă\nprin poştă, fax, poştă electronică în legătură cu procedurile de achiziţie publică"]
[null,null,null,null,"4. Cheltuieli aferente organizării şi derulării procedurilor de achiziţii publice"]
["3.7",null,null,null,"Cheltuieli pentru consultanţă",null,null,null,null,null,null,null,null,null,null,null,null,null,null,null,null,null,null,null,null,null,null,null,null,null,null,null,null,null,null,null,null,null,null,null,null,null,{"$f":"AQ421","v":0},null,null,null,null,null,null,null,null,{"$f":"AZ421+AZ422","v":0}]
[null,null,null,null,"3.7.1 Managementul de proiect pentru obiectivul de investiţii"]
[null,null,null,null,"3.7.2 Auditul financiar"]
["3.8",null,null,null,"Cheltuieli pentru asistenţă tehnică",null,null,null,null,null,null,null,null,null,null,null,null,null,null,null,null,null,null,null,null,null,null,null,null,null,null,null,null,null,null,null,null,null,null,null,null,null,{"$f":"AQ424+AQ427","v":0},null,null,null,null,null,null,null,null,{"$f":"AZ424+AZ427","v":0}]
[null,null,null,null,"3.8.1. Asistenţă tehnică din partea proiectantului",null,null,null,null,null,null,null,null,null,null,null,null,null,null,null,null,null,null,null,null,null,null,null,null,null,null,null,null,null,null,null,null,null,null,null,null,null,{"$f":"AQ425+AQ426","v":0},null,null,null,null,null,null,null,null,{"$f":"AZ425+AZ426","v":0}]
[null,null,null,null,"    1.1. pe perioada de execuţie a lucrărilor"]
[null,null,null,null,"    1.2. pentru participarea proiectantului la fazele incluse în programul de control al lucrărilor de execuţie, avizat de către Inspectoratul de Stat în Construcţii\n"]
[null,null,null,null,"3.8.2 Dirigenţie de şantier, asigurată de personal tehnic de specialitate, autorizat"]
[null,null,null,null,"Total valoare fără TVA",null,null,null,null,null,null,null,null,null,null,null,null,null,null,null,null,null,null,null,null,null,null,null,null,null,null,null,null,null,null,null,null,null,null,null,null,null,{"$f":"AQ423+AQ420+AQ408+AQ407+AQ406+AQ396+AQ392","v":0},null,null,null,null,null,null,null,null,{"$f":"AZ423+AZ420+AZ415+AZ408+AZ407+AZ406+AZ396+AZ392","v":0}]
[null,null,null,null,"Valoare TVA (aferentă cheltuielilor eligibile şi neeligibile)"]
["TOTAL DEVIZ FINANCIAR 1 (inclusiv TVA)",null,null,null,null,null,null,null,null,null,null,null,null,null,null,null,null,null,null,null,null,null,null,null,null,null,null,null,null,null,null,null,null,null,null,null,null,null,null,null,null,null,{"$f":"AQ428+AZ428+AQ429+AZ429","v":0}]
[]
["Notă: Pentru a adăuga o nouă anexă accesaţi foaia (sheet) corespunzătoare sau click aici"]
[]
[null,null,null,null,null,null,null,"MINISTERUL AGRICULTURII ŞI DEZVOLTĂRII RURALE"]
[null,null,null,null,null,null,null,null,null,null,null,null,null,null,null,null,null,null,null,null,null,null,null,null,null,null,null,null,null,null,null,null,null,null,null,null,null,null,null,null,null,null,"Anexa A2\nHG 907/2016"]
[null,null,null,null,null,null,null,"AGENŢIA PENTRU FINANŢAREA INVESTIŢIILOR RURALE"]
[]
[null,null,null,null,null,null,null,"DEVIZ PE OBIECT *"]
[]
["*se înscrie denumirea obiectului de construcție sau intervenție: ..............................................................................."]
[]
["Nr. crt.",null,null,null,"Denumire",null,null,null,null,null,null,null,null,null,null,null,null,null,null,null,null,null,null,null,null,null,null,null,null,null,null,null,null,null,null,null,null,null,null,null,null,null,"Valoarea pe categorii de lucrări, fară TVA - EURO"]
["Cap. 4 + Cheltuieli pentru investiţia de bază",null,null,null,null,null,null,null,null,null,null,null,null,null,null,null,null,null,null,null,null,null,null,null,null,null,null,null,null,null,null,null,null,null,null,null,null,null,null,null,null,null,"Valoare eligibilă",null,null,null,null,null,null,null,null,"Valoare\nneeligibilă"]
["   I - LUCRĂRI DE CONSTRUCŢII ŞI INSTALAŢII"]
["4.1",null,null,null,"Construcţii şi instalaţii"]
[null,null,null,null,"4.1.1 Terasamente, sistematizare pe verticală şi amenajări exterioare"]
[null,null,null,null,"4.1.2 Rezistenţă"]
[null,null,null,null,"4.1.3 Arhitectură"]
[null,null,null,null,"4.1.4 Instalaţii"]
[null,null,null,null,"TOTAL I ( fără TVA)",null,null,null,null,null,null,null,null,null,null,null,null,null,null,null,null,null,null,null,null,null,null,null,null,null,null,null,null,null,null,null,null,null,null,null,null,null,{"$f":"SUM(AQ446:AQ449)","v":0},null,null,null,null,null,null,null,null,{"$f":"SUM(AZ446:BI449)","v":0}]
["   II - MONTAJ"]
["4.2",null,null,null,"Montaj utilaje şi echipamente tehnologice"]
[null,null,null,null,"TOTAL II ( fără TVA)",null,null,null,null,null,null,null,null,null,null,null,null,null,null,null,null,null,null,null,null,null,null,null,null,null,null,null,null,null,null,null,null,null,null,null,null,null,{"$f":"SUM(AQ452)","v":0},null,null,null,null,null,null,null,null,{"$f":"SUM(AZ452)","v":0}]
["   III - PROCURARE"]
["4.3",null,null,null,"Utilaje, echipamente tehnologice şi funcţionale care necesită montaj"]
["4.4",null,null,null,"Utilaje, echipamente tehnologice şi funcţionale care nu necesită\nmontaj şi echipamente de transport"]
["4.5",null,null,null,"Dotări"]
["4.6",null,null,null,"Active necorporale"]
[null,null,null,null,"TOTAL III ( fără TVA)",null,null,null,null,null,null,null,null,null,null,null,null,null,null,null,null,null,null,null,null,null,null,null,null,null,null,null,null,null,null,null,null,null,null,null,null,null,{"$f":"SUM(AQ455:AY458)","v":0},null,null,null,null,null,null,null,null,{"$f":"SUM(AZ455:BI458)","v":0}]
["TOTAL ( TOTAL I + TOTAL II +TOTAL III) fără TVA",null,null,null,null,null,null,null,null,null,null,null,null,null,null,null,null,null,null,null,null,null,null,null,null,null,null,null,null,null,null,null,null,null,null,null,null,null,null,null,null,null,{"$f":"AQ459+AQ453+AQ450","v":0},null,null,null,null,null,null,null,null,{"$f":"AZ459+AZ453+AZ450","v":0}]
["TVA aferent cheltuielilor eligibile şi neeligibile"]
["TOTAL DEVIZ PE OBIECT (inclusiv TVA)",null,null,null,null,null,null,null,null,null,null,null,null,null,null,null,null,null,null,null,null,null,null,null,null,null,null,null,null,null,null,null,null,null,null,null,null,null,null,null,null,null,{"$f":"AQ460+AZ460+AQ461+AZ461","v":0}]
[]
["Notă: Pentru a adăuga o nouă anexă accesaţi foaia (sheet) corespunzătoare sau click aici"]
[]
["Situaţia achiziţiilor publice efectuate până la depunerea Cererii de finanţare cu respectarea condiţiilor de eligibilitate a cheltuielilor prevăzute în fişa Măsurii 11/6C"]
["Nr. crt.",null,null,"Obiectul contractului",null,null,null,null,null,null,null,null,null,null,null,null,null,null,"Valoarea reală                         (Lei)",null,null,null,null,"Procedura aplicată",null,null,null,null,null,null,null,null,null,null,null,null,null,null,null,null,null,"Data începerii procedurii (zz/ll/aaaa)",null,null,null,null,null,null,"Data finalizarii procedurii (zz/ll/aaaa)",null,null,null,null,null,null,"Stadiul procedurii"]
[1,null,null,"Servicii de consultanță"]
[2,null,null,"Elaborarea Studiului de Fezabilitate"]
[3]
[4]
[5]
[6]
[7]
["Declar pe proprie răspundere că informațiile din tabelul de mai sus sunt corecte și ca la atribuirea contractelor de servicii menționate au fost respectate prevederile legislației naționale în vigoare privind procedura de achiziție publică."]
[]
["Reprezentant legal, Nume/Prenume"]
["Semnatura si ştampila"]
[]
[]
[null,null,null,null,null,null,null,"MINISTERUL AGRICULTURII ŞI DEZVOLTĂRII RURALE",null,null,null,null,null,null,null,null,null,null,null,null,null,null,null,null,null,null,null,null,null,null,null,null,null,null,null,null,null,null,null,null,null,null,"Anexa A3\nHG 907/2016"]
[]
[null,null,null,null,null,null,null,"AGENŢIA PENTRU FINANŢAREA INVESTIŢIILOR RURALE"]
[]
[]
[]
["(Titlu deviz)"]
["Deviz capitolul 2 - Cheltuieli pentru asigurarea utilităţilor necesare obiectivului - EURO"]
["Nr.crt",null,null,null,"Specificaţie",null,null,null,null,null,null,null,null,null,null,null,null,null,null,null,null,null,null,null,null,null,null,null,null,null,null,null,null,null,null,null,null,null,null,null,null,null,"Valoare eligibilă",null,null,null,null,null,null,null,null,"Valoare\nneeligibilă"]
[1,null,null,null,"Alimentare cu apă"]
[2,null,null,null,"Canalizare"]
[3,null,null,null,"Alimentare cu gaze naturale"]
[4,null,null,null,"Alimentare cu agent termic"]
[5,null,null,null,"Alimentare cu energie electrică"]
[6,null,null,null,"Telecomunicaţii (telefonie, radio-tv,etc)"]
[7,null,null,null,"Drumuri de acces"]
[8,null,null,null,"Căi ferate industriale"]
[9,null,null,null,"Alte utilități"]
[null,null,null,null,"TOTAL DEVIZ CAPITOLUL 2",null,null,null,null,null,null,null,null,null,null,null,null,null,null,null,null,null,null,null,null,null,null,null,null,null,null,null,null,null,null,null,null,null,null,null,null,null,{"$f":"SUM(AQ490:AY498)","v":0},null,null,null,null,null,null,null,null,{"$f":"SUM(AZ490:BI498)","v":0}]
[null,null,null,null,"Valoare TVA aferentă cheltuielilor eligibile şi neeligibile"]
["TOTAL DEVIZ CAPITOLUL 2 (inclusiv TVA)",null,null,null,null,null,null,null,null,null,null,null,null,null,null,null,null,null,null,null,null,null,null,null,null,null,null,null,null,null,null,null,null,null,null,null,null,null,null,null,null,null,{"$f":"AQ499+AZ499+AQ500+AZ500","v":0}]
[]
[" Deviz capitolul 5 - Alte cheltuieli - EURO"]
["Nr.crt",null,null,null,"Specificaţie",null,null,null,null,null,null,null,null,null,null,null,null,null,null,null,null,null,null,null,null,null,null,null,null,null,null,null,null,null,null,null,null,null,null,null,null,null,"Valoare eligibilă",null,null,null,null,null,null,null,null,"Valoare\nneeligibilă"]
[]
["5.1 ",null,null,null,"Organizare de şantier",null,null,null,null,null,null,null,null,null,null,null,null,null,null,null,null,null,null,null,null,null,null,null,null,null,null,null,null,null,null,null,null,null,null,null,null,null,{"$f":"SUM(AQ507:AY508)","v":0},null,null,null,null,null,null,null,null,{"$f":"SUM(AZ507:BI508)","v":0}]
[null,null,null,null,"5.1.1 Lucrări de construcţii şi instalaţii aferente organizării de şantier"]
[null,null,null,null,"5.1.2 Cheltuieli conexe organizării de şantier"]
["5.2",null,null,null,"Comisioane, cote, taxe, costul creditului",null,null,null,null,null,null,null,null,null,null,null,null,null,null,null,null,null,null,null,null,null,null,null,null,null,null,null,null,null,null,null,null,null,null,null,null,null,{"$f":"SUM(AQ511:AQ514)-AQ513","v":0},null,null,null,null,null,null,null,null,{"$f":"SUM(AZ510:BI514)","v":0}]
[null,null,null,null,"5.2.1. Comisioanele şi dobânzile aferente creditului băncii finanţatoare",null,null,null,null,null,null,null,null,null,null,null,null,null,null,null,null,null,null,null,null,null,null,null,null,null,null,null,null,null,null,null,null,null,null,null,null,null,1]
[null,null,null,null,"5.2.2. Cota aferentă ISC pentru controlul calităţii lucrărilor de\nconstrucţii"]
[null,null,null,null,"5.2.3. Cota aferentă ISC pentru controlul statului în amenajarea teritoriului, urbanism şi pentru autorizarea lucrărilor de construcţii"]
[null,null,null,null,"5.2.4. Cota aferentă Casei Sociale a Constructorilor - CSC"]
[null,null,null,null,"5.2.5. Taxe pentru acorduri, avize conforme şi autorizaţia de construire/desfiinţare"]
["5.3",null,null,null," Cheltuieli diverse si neprevăzute"]
["5.3",null,null,null,"Cheltuieli pentru informare și publicitate"]
[null,null,null,null,"TOTAL DEVIZ CAPITOLUL 5",null,null,null,null,null,null,null,null,null,null,null,null,null,null,null,null,null,null,null,null,null,null,null,null,null,null,null,null,null,null,null,null,null,null,null,null,null,{"$f":"AQ506+AQ509+AQ516","v":0},null,null,null,null,null,null,null,null,{"$f":"AZ516+AZ515+AZ509+AZ506","v":0}]
[null,null,null,null,"VALOARE TVA aferentă cheltuielilor eligibile şi neeligibile"]
[null,null,null,null,"TOTAL DEVIZ CAPITOLUL 5 ( inclusiv TVA)",null,null,null,null,null,null,null,null,null,null,null,null,null,null,null,null,null,null,null,null,null,null,null,null,null,null,null,null,null,null,null,null,null,null,null,null,null,{"$f":"AQ517+AZ517+AQ518+AZ518","v":0}]
[]
["Notă: Pentru a adăuga o nouă anexă accesaţi foaia (sheet) corespunzătoare sau click aici"]
[]
[]
["MINISTERUL AGRICULTURII ŞI DEZVOLTĂRII RURALE",null,null,null,null,null,null,null,null,null,null,null,null,null,null,null,null,null,null,null,null,null,null,null,null,null,null,null,null,null,"SECTIUNE SPECIFICA MASURA 11/6C"]
["AGENŢIA PENTRU FINANŢAREA INVESTIŢIILOR RURALE"]
[]
["D. ALTE INFORMAȚII :"]
["Programarea proiectului:"]
["Numar luni de implementare"]
[]
["E. LISTA DOCUMENTELOR ANEXATE PROIECTELOR AFERENTE MĂSURII 11/6C",null,null,null,null,null,null,null,null,null,null,null,null,null,null,null,null,null,null,null,null,null,null,null,null,null,null,null,null,null,null,null,null,null,null,null,null,null,null,null,null,null,null,null,null,null,null,null,null,null,null,null,null,null,null,"OPIS"]
[null,null,null,null,null,null,null,null,null,null,null,null,null,null,null,null,null,null,null,null,null,null,null,null,null,null,null,null,null,null,null,null,null,null,null,null,null,null,null,null,null,null,null,null,null,null,null,null,null,null,null,null,null,null,null,"documente"]
["Documentele se vor anexa cererii de finanțare în ordinea de mai jos:"]
["Lista documente",null,null,null,null,null,null,null,null,null,null,null,null,null,null,null,null,null,null,null,null,null,null,null,null,null,null,null,null,null,"Obligatoriu pentru toate proiectele",null,null,null,null,"Obligatoriu, dacă proiectul impune",null,null,null,null,null,null,"PAGINA de   la - până la",null,null,null,null,null,null,null,"Obligatoriu pentru toate proiectele",null,null,null,null,"Obligatoriu, dacă proiectul impune"]
["ETAPA:",null,null,null,null,null,null,null,null,null,null,null,null,null,null,null,null,null,null,null,null,null,null,null,null,null,null,null,null,null,"DEPUNERE",null,null,null,null,null,null,null,null,null,null,null,null,null,null,null,null,null,null,null,"CONTRACTARE"]
["1.1Studiu de Fezabilitate/DALI întocmit în conformitate cu Hotărârea nr. 907/2016 privind etapele de elaborare și conținutul-cadru al documentațiilor tehnico-economice aferente obiectivelor / proiectelor de investiții finanțate din fonduri publice însoțit de avizele și acordurile specifice fiecărui tip de investiție, conform reglementărilor legale în vigoare şi Avizul INSCC privind componenta tehnică din cadrul SF.\n   sau\n1.2Memoriu justificativ (în cazul dotărilor) şi Avizul INSCC privind componenta tehnică din cadrul MJ.\nImportant! Cursul de schimb valutar utilizat va fi cel publicat de Banca Central Europeană pe internet la adresa: http: www.ecb.int/index.htm., din data întocmirii Studiului de Fezabilitate. \n\nPentru justificarea rezonabilităţii preţurilor pentru investiția de bază, proiectantul va avea în vedere prevederile HG nr. 363/2010 privind aprobarea standardelor de cost pentru obiective de investiţii finanţate din fonduri publice, cu modificările şi completările ulterioare şi va întocmi o Declarație (semnată si ştampilată) prin care va indica sursa de preţuri pentru lucrări.\n\nPentru justificare bugetării dotărilor din proiect se va utiliza baza de date – prețuri de referință AFIR sau va prezenta 1 ofertă (pentru investiții sub 15.000 de euro) și 2 oferte comparabile (pentru investiții peste 15.000 de euro) cu prețuri rezonabile identificate în piață.\n"]
["2. Certificat de Urbanism, completat și eliberat conform reglementărilor legale în vigoare valabil la data depunerii cererii de finanțare, privind autorizarea lucrărilor de construcții;\nÎn Certificatul de Urbanism trebuie specificat numele proiectului / investiţiei așa cum este menţionat în Cererea de Finanţare. De asemenea, vor fi completate clar elemente privind tipul şi numărul documentului de urbanism în baza căruia s-a eliberat, actul prin care s-a aprobat acesta.\n   sau\nAutorizație de construire, dacă este disponibilă.\n"]
["3.1 Pentru comune, APL și ADI\n3.1.1 Inventarul bunurilor ce aparţin domeniului public al comunei/comunelor, întocmit conform legislaţiei în vigoare privind proprietatea publică şi regimul juridic al acesteia, atestat prin Hotărâre a Guvernului şi publicat în Monitorul Oficial al României (copie după M.Of.).\nşi"]
["3.1.2 Hotărârea Consiliului Local privind aprobarea modificărilor şi / sau\ncompletărilor la inventar în sensul includerii în domeniul public sau\ndetalierii poziției globale existente sau clasificării unor drumuri\nneclasificate, cu respectarea prevederilor Art. 115 alin (7) din Legea nr.\n215/ 2001, republicată, cu modificările şi completările ulterioare, a\nadministraţiei publice locale, adică să fi fost supusă controlului de legalitate al Prefectului, în condiţiile legii\nși/sau"]
["3.1.3 Avizul administratorului terenului aparţinând domeniului public, altul\ndecat cel administrat de primarie (dacă este cazul)"]
["3.1.4 Alte documente legale (Legi, Ordonanțe, Hotărâri de Guvern, Hotărâri ale Consiliilor Locale sau Județene, etc.) "]
["3.1.5 Alte documente de proprietate (dacă este cazul)"]
["3.2Documente pentru terenurile și clădirile pe/în care sunt/ vor fi realizate investițiile: \na) Pentru rețele: \n3.2.1. Acorduri de acces la proprietăți conform prevederilor legale \n3.2.2 Acorduri de interconectare conform prevederilor legale\n"]
["b) Pentru investițiile care prevăd lucrări de construcții: \n3.2.3 Document din care să reiasă dreptul asupra construcției și/sau terenului care conferă solicitantului dreptul de a obține, potrivit legii, din partea autorității competente, autorizația de construire: \n- dreptul real principal: drept de proprietate, uz, uzufruct, superficie, servitute, (dobîndit prin: contract de vânzare cumpărare, de schimb, de donație, certificat de moștenitor, act administrativ de restituire, hotărâre judecătorească)/ contract de concesiune – minim 5 ani; \nsau \n- drept de creanță dobândit prin contract de cesiune, comodat, locațiune – minim 5 ani. Emiterea autorizației de construire în baza unui contract de comodat/locațiune se poate face numai pentru construcții cu caracter provizoriu și acordul expres al proprietarului de drept.\nsau\n- declarație angajament de obținere a tuturor avizelor necesare emiterii autorizației de construcție pentru terenul pe care se va face investiția la momentului depunerii proiectului tehnic.\n"]
["4. Hotărârea Consiliului Local / Hotărârile Consiliului Local în cazul ADI / Hotărârea primăriei comunei în cazul APL / Hotărârea Adunării Generale în cazul GAL pentru implementarea proiectului, cu referire la următoarele puncte:\n• necesitatea, oportunitatea și potenţialul economic al investiţiei;\n• lucrările vor fi prevăzute în bugetul/bugetele local/e pentru perioada de realizare a investiţiei;\n• angajamentul de a suporta cheltuielile de mentenanță a investiţiei pe o perioadă de minimum 5 ani de la data efectuării ultimei plăţi;\n• numărul de locuitori deserviţi de proiect;\n• caracteristici tehnice (lungimi, arii, volume, capacităţi etc.);\n• agenţii economici deserviţi direct de investiţie (dacă este cazul, număr și denumire);\n• nominalizarea reprezentantului legal al comunei/APL/ADI/GAL pentru relaţia cu AFIR în derularea proiectului.\n• angajamentul de asigurare a cofinanțării, dacă este cazul.\n"]
["5. Certificatul de înregistrare fiscală"]
["6. Documente de înființare și funcționare ale beneficiarului sprijinului\n     6.1 Pentru agenți economici:\n6.1.1 Certificatul de înregistrare eliberat de Oficiul Registrului Comerțului conform legislației în vigoare\n6.1.2 Certificat constatator emis de Oficiul Registrului Comerțului\n"]
["   6.2 Pentru GAL:\n6.2.1 Autorizația GAL\n6.2.2 Act constitutiv și Statutul GAL din care să rezulte faptul că parteneriatul poate depune proiect în cadrul măsurii propuse prin Strategia de Dezvoltare Locală, prin care sunt sprijinite investiții în infrastructura de broadband;\n6.2.3 Certificat de înregistrare în Registrul Asociațiilor și Fundațiilor\n6.2.4 Precontract privind promisiunea de concesionare a serviciilor/rețelei de comunicații (a se vedea procedura ANCOM din adr. 1065/13.01.2017, postată pe site-ul MADR secțiunea LEADER 2014-2020), sub condiția selectării cererii de finanțare pentru acordarea sprijinului)\n"]
["  6.3 Pentru Entități publice, Asociații de Dezvoltare Intercomunitare (ADI), Autorități Publice Locale( APL):\n6.3.1 Pentru entități publice - actele de înființare\n6.3.2 Pentru ADI - act de înființare și statutul, încheiere privind înscrierea în registrul asociaţiilor şi fundaţiilor, rămasă definitivă/ Certificat de înregistrare în registrul asociaţiilor şi fundaţiilor ;\n6.3.3 Pentru APL vor fi prezentate Hotărârea judecătorească de validare a mandatului primarului și Hotărârea de validare a consilului local;\n6.3.4 Precontract privind promisiunea de concesionare a serviciilor/rețelei de comunicații (a se vedea procedura ANCOM din adr. 1065/13.01.2017, postată pe siteul MADR secțiunea LEADER 2014-2020), sub condiția selectării cererii de finanțare pentru acordarea sprijinului.- pentru toate categoriile de beneficiari de la pct. 6.3\n"]
["7. Situațiile financiare pentru anii n, n-1 și n-2, unde n este anul 2017 ( bilanț formular 10 , contul de profit si pierderi, formularul 20 si formularele 30 si 40) în care rezultatul operațional (rezultatul de exploatare din bilanț) să nu fie negativ, \nsau "]
["situațiile financiare (bilanț formular 10, contul de profit si pierderi, formularul 20 si formularele 30 si 40) prin care dovedesc că nu au înregistrat venituri din exploatare, \nsau "]
["declarația de inactivitate înregistrată la Administrația Financiară în cazul solicitanților care nu au desfășurat activitate anterior depunerii proiectului"]
["8. Declarație pe propria răspundere privind co-finanțarea proiectului"]
["9. Document de la bancă/trezorerie cu datele de identificare ale băncii/trezoreriei şi ale contului aferent proiectului FEADR (denumirea, adresa băncii/trezoreriei, codul IBAN al contului în care se derulează operaţiunile cu AFIR)"]
["10. Declarație pe propria răspundere că va prezenta înaintea semnării contractului de finanțare cu AFIR: \n•Certificate care să ateste lipsa datoriilor fiscale restante și graficul de reeșalonare a datoriilor către bugetul consolidat (dacă este cazul).\n•Certificatul de cazier judiciar\n"]
["11. Declarație pe propria răspundere că va prezenta înaintea semnării contractului de finanțare cu AFIR - Document care să ateste ca solicitantul a depus documentaţia la ANPM:\n• Clasarea notificării\nsau\n• Decizia etapei de încadrare, ca document final (prin care se precizează că proiectul nu se supune evaluării impactului asupra mediului şi nici evaluării adecvate)\nsau\n• Acord de mediu în cazul în care se impune evaluarea impactului preconizat asupra mediului.\nsau\n• Acord de mediu în cazul evaluării impactului asupra mediului și de evaluare adecvată (dacă este cazul).\n• Aviz Natura 2000 pentru proiectele care impun doar evaluare adecvată.\n"]
["12. Declarație pe propria răspundere că va prezenta înaintea semnării contractului de finanțare cu AFIR – notificare privind:\n• conformitatea proiectului cu condiţiile de igienă şi sănătate publică / că nu face obiectul evaluării condiţiilor de igienă şi sănătate publică, dacă este cazul și \n• conformitatea proiectului cu legislația în vigoare pentru domeniul sanitar veterinar,  dacă este cazul\n"]
["13. Raport asupra utilizării programelor de finanţare nerambursabilă întocmit de solicitant (va cuprinde amplasamentul, obiective, tip de investiție, lista cheltuielilor eligibile, costurile și stadiul proiectului, perioada derulării contractului), pentru solicitantii care au mai beneficiat de finanțare nerambursabilă începând cu anul 2007, pentru aceleași tipuri de investiții."]
["14. Copia Documentului de identitate al reprezentantului legal al beneficiarului."]
["15. Declarație pe propria răspundere privind eligibilitatea solicitantului "]
["16. Declarația pe proprie răspundere a solicitantului privind încadrarea în categoria IMM – pentru aplicanții IMM"]
["17. Declarația pe proprie răspundere a solicitantului privind neîncadrarea categoria ”întreprindere în dificultate” – pentru aplicanții IMM"]
["18. Declarația pe proprie răspundere a solicitantului privind respectarea regulii de cumul a ajutoarelor de stat şi ajutoarelor de minimis – pentru aplicanții IMM, GAL"]
["19. Declarație pe proprie răspundere privind prezentarea proiectului tehnic"]
["20. Declarație pe propria răspundere privind accesul deschis și transparența proiectului"]
["21. Adresă de la primăriile comunelor de care aparțin localitățile (satele) unde urmează să se efectueze investiția, din care să rezulte dacă acestea au emis vreo autorizație de construire a unei rețele fixe de furnizare a serviciilor în bandă largă de mare viteză (peste 30 Mbps) și dacă a început ori s-a finalizat construcția efectivă"]
["22. Lista agenților economici, a instituțiilor sociale și de interes public, a gospodăriilor deservite de proiect"]
["23. Declarație pe proprie răspundere privind realizarea indicatorului de monitorizare prevăzut de GAL"]
["24. Autorizație generală emisă de ANCOM însoțită de notificarea privind furnizarea rețelor și serviciilor de comunicații electronice cu anexele aferente, depuse de solicitant în vederea obținerii acestei autorizații - pentru situația în care solicitanul FEADER este deja autorizat"]
["25. Dovada notificării ANCOM – pentru situația în care solicitantul are intenția de a furniza rețele și servicii de comunicații electronice +/- infrastructura fizică aferentă "]
["26. Declarație pe propria răspundere privind asigurarea mentenanței investiției "]
["27.1 Extrasul din strategie, care confirmă dacă investiția este în corelare cu orice strategie de dezvoltare națională / regională / județeană / locală aprobată, corespunzătoare domeniului de investiții precum și copia hotărârii de aprobare a strategiei\nsau\n"]
["27.2 Adresă emisă de GAL Movila lui Burcel care confirmă că investiția propusă se regăsește în SDL 2014-2020 a GAL, precum și extrasul din SDL."]
["28. Declarație pe propria răspundere privind angajamentul de raportare către GAL Movila lui Burcel Vaslui Nord"]
["20. Alte documente justificative (Se vor specifica dupa caz)"]
[]
[]
[]
[]
[]
["F. DECLARAŢIE PE PROPRIA RĂSPUNDERE A SOLICITANTULUI"]
["Prin această declaraţie solicitantul"]
[]
["care solicită asistență financiară nerambursabilă prin programul FEADR pentru proiectul intitulat"]
[]
["prin reprezentant legal"]
[]
["cunoscând prevederile legii penale cu privire la falsul în declarații:"]
[null,null,null,"1. Declar că proiectul propus asistenței financiare nerambursabile FEADR nu beneficiază de altă finanțare din\nprograme de finanțare nerambursabilă."]
["De asemenea mă angajez ca în cazul în care proiectul va fi selectat pentru finanțare FEADR, nu voi depune acest\nproiect la nici un alt program de finanțare nerambursabilă la care proiectul poate fi în întregime sau parțial eligibil\npentru asistență."]
[null,null,null,"2. Declar că îndeplinesc condițiile de eligibilitate prevăzute în fișa măsurii și Ghidul Solicitantului și mă\nangajez să le respect pe perioada de valabilitate a contractului de finanțare și monitorizare a investiției, inclusiv\ncriteriile de selecție pentru care proiectul a fost punctat."]
[null,null,null,"3. Declar că toate informațiile din prezenta cerere de finanțare și din documentele anexate sunt corecte și mă\nangajez să respect condițiile cerute în reglementările referitoare la prezentul program și pe cele legate de\nproiectul anexat și să furnizez periodic, la cerere, documentele justificative necesare."]
[null,null,null,"4. Declar pe propria răspundere că orice modificări aduse dreptului de proprietate sau de folosință vor fi\nnotificate AFIR în termen de trei zile de la data producerii lor."]
["  5. Declar că eu și organizația mea nu ne aflăm într-unul din următoarele cazuri:"]
[null,null,null,"•Acuzat din cauza unei greșeli privind conduita profesională având ca soluție finală res judicata (împotriva căreia nici un apel nu este posibil)."]
[null,null,null,"•Vinovat de grave deficiențe de conduită profesională dovedite prin orice mijloace pe care Agenția le poate justifica."]
[null,null,null,"•Vinovat de faptul că nu am prezentat informaţiile cerute de autoritatea contractantă ca o condiţie de participare la licitaţie sau contractare."]
[null,null,null,"•Încălcarea prevederilor contractuale prin care nu mi-am îndeplinit obligațiile contractuale în legătură cu un alt contract cu Agenția sau alte contracte finanțate din fonduri comunitare."]
[null,null,null,"•Încercarea de a obține informații confidențiale sau de influențare a Agenției în timpul procesului de evaluare a proiectului și nu voi face presiuni la adresa evaluatorului."]
["6.",null,null,null,null,"Declar că organizația pe care o reprezint ARE datorii către instituții de credit și/sau instituții financiare\nnebancare. În acest sens, atașez Graficul de rambursare a datoriilor și document de la bancă pentru\ncertificarea respectării graficului de rambursare."]
[null,null,null,null,null,"Declar că organizația pe care o reprezint NU are datorii către instituții de credit şi/sau instituții financiare\nnebancare."]
["7.",null,null,null,null,"Declar pe propria răspundere ca în cazul în care nu respect oricare din punctele prevăzute în această\ndeclarație proiectul să devină neeligibil în baza criteriului \"Eligibilitatea solicitantului\" sau contractul să fie\nreziliat."]
["8.",null,null,null,null,"Declar pe propria răspundere că:"]
[null,null,null,null,null,"Nu sunt înregistrat în scopuri TVA și că mă angajez să notific Agenției orice modificare a situatiei privind înregistrarea ca plătitor de TVA, în maximum 10 (zece) zile de la data înregistrării în scopuri TVA."]
[null,null,null,null,null,"Sunt înregistrat în scopuri de TVA (certificat de înregistrare fiscală în scopuri de TVA)."]
["9.",null,null,null,null,"Declar pe propria răspundere că nu am înscrieri care privesc sancțiuni economico-financiare în cazierul\njudiciar pe care mă oblig să îl depun la încheierea contractului de finanțare."]
["10.",null,null,null,null,"Declar pe propria răspundere că nu am fapte înscrise în cazierul fiscal."]
["11.",null,null,null,null,"Declar pe propria răspundere că toate cheltuielile neeligibile vor fi suportate de solicitant și că acestea vor fi realizate până la finalizarea proiectului."]
["12.",null,null,null,null,"Mă angajez ca în termenul precizat de AFIR, de la data primirii \"Notificării benficiarului privind selectarea cererii de finanțare și semnarea contractului de finanțare\", să asigur și să prezint documentele obligatorii menționate pentru contractarea proiectului."]
["13.",null,null,null,null,"Declar pe proprie raspundere că voi achita integral datoria față de AFIR, inclusiv dobânzile și majorările de\nîntârziere până la semnarea contractului de finanțare (pentru solicitanții înregistrați în registrul debitorilor AFIR atât pentru programul SAPARD cât și pentru FEADR)."]
["14.",null,null,null,null,"Declar pe propria răspundere ca nu sunt în insolvență sau incapacitate de plată."]
[15,null,null,null,null,"Declar pe propria răspundere că în conformitate cu termenul menţionat în notificarea AFIR privind selecţia cererii de finanţare, voi obţine şi depune, înainte de semnarea contractului de finanţare, documentul emis de ANPM."]
[16,null,null,null,null,"Accept publicarea pe site-ul AFIR a datelor mele cu respectarea legislaţiei naţionale şi europene privind transparenţa."]
[]
["Semnătura reprezentant legal şi ştampila",null,null,null,null,null,null,null,null,null,null,null,null,null,null,null,null,null,null,null,null,null,null,null,null,null,null,null,null,null,null,null,null,null,null,null,null,null,null,null,null," Data:"]
[]
[]
[]
["Anexa INDICATORI DE MONITORIZARE - AFIR"]
["Măsura 11/6C - INVESTIȚII PENTRU ASIGURAREA DE INTERNET DE BANDĂ LARGĂ\n"]
["1. Tipul de sprijin",null,null,null,null,null,null,null,null,null,null,null,null,null,null,null,null,"a. Construcţia, extinderea și/ sau modernizarea rețelei de drumuri de interes local "]
[null,null,null,null,null,null,null,null,null,null,null,null,null,null,null,null,null,"b. Construcţia, extinderea și/ sau modernizarea rețelei publice de apă"]
[null,null,null,null,null,null,null,null,null,null,null,null,null,null,null,null,null,"c. Construcţia, extinderea și/ sau modernizarea rețelei publice de apă uzată"]
[null,null,null,null,null,null,null,null,null,null,null,null,null,null,null,null,null,"d. Construcţia, extinderea și/ sau modernizarea infrastructurii integrate de apă și apă uzată"]
[null,null,null,null,null,null,null,null,null,null,null,null,null,null,null,null,null,"e. Înfiinţarea şi modernizarea grădiniţelor, numai a celor din afara incintei școlilor din mediul rural"]
[null,null,null,null,null,null,null,null,null,null,null,null,null,null,null,null,null,"f. Înfiinţarea şi modernizarea creşelor precum şi a infrastructurii de tip after-school, numai a celor din afara incintei școlilor din mediul rural"]
[null,null,null,null,null,null,null,null,null,null,null,null,null,null,null,null,null,"g. Extinderea și modernizarea instituțiilor de învățământ secundar superior, filiera tehnologică cu profil resurse naturale şi protecţia mediului şi a şcolilor profesionale în domeniul agricol."]
["2. Numărul comunelor sprijinite"]
["3. Număr KM de drum",null,null,null,null,null,null,null,null,null,null,null,null,null,null,null,null,"Nou construiţi"]
[null,null,null,null,null,null,null,null,null,null,null,null,null,null,null,null,null,"Modernizaţi"]
["4. Număr KM de conducte de alimentare cu apă",null,null,null,null,null,null,null,null,null,null,null,null,null,null,null,null,"Noi lucrări"]
[null,null,null,null,null,null,null,null,null,null,null,null,null,null,null,null,null,"Extindere şi /sau modernizare"]
["5. Număr KM de conducte de canalizare",null,null,null,null,null,null,null,null,null,null,null,null,null,null,null,null,"Noi lucrări"]
[null,null,null,null,null,null,null,null,null,null,null,null,null,null,null,null,null,"Extindere şi /sau modernizare"]
["6. Număr locuitori deserviţi"]
["7. Zonă montană ",null,null,null,null,null,null,null,null,null,null,null,null,null,null,null,null,null,null,null,null,null,null,null,null,null,null,null,null,null,null,null,null,null,null,null,null,null,null,null,null,null,null,null,null,null,null,null,null,null,"        DA            NU"]
["8. Contribuie la Prioritatea 1",null,null,null,null,null,null,null,null,null,null,null,null,null,null,null,null,"M01 - Transfer de cunoştinţe şi acţiuni de informare"]
[null,null,null,null,null,null,null,null,null,null,null,null,null,null,null,null,null,"M02 - Servicii de consiliere"]
[null,null,null,null,null,null,null,null,null,null,null,null,null,null,null,null,null,"M16 - Cooperare"]
[]
["Indic. nr. 1 - se va bifa doar o singura categorie/ categoria majoritară"]
["Indic. nr. 2 - se va completa numărul comunelor sprijinite prin proiect"]
["Indic. nr. 3, 4, 5 - se va completa numărul de KM de drum, de conducte de alimentare cu apă şi de conducte de canalizare realizate prin proiect"]
["Indic. nr. 6 - se va completa numărul locuitorilor deserviţi"]
["Indic. nr. 7 - se va completa cu \"DA\" în cazul în care investiţia este amplasată în zonă montană (cf. Listei UAT din Zonele Montane); încaz contrar se va completa \"NU\""]
["Indic. nr. 8 - se va completa din momentul demararii M01, M02, respectiv M16, cu bifa în dreptul măsurii corespunzătoare, dacă va fi cazul."]
["Pentru indicatorii de tip numeric care nu fac obiectul investitiei sa va completa valoarea zero."]
[]
["ANEXA INDICATORI DE MONITORIZARE - GAL MOVILA LUI BURCEL VASLUI NORD"]
["Măsura 11/6C - INVESTIȚII PENTRU ASIGURAREA DE INTERNET DE BANDĂ LARGĂ"]
["1.număr de benficiari - populație - care beneficiază de servicii TIC\nprocent din total populație în comună",null,null,null,null,null,null,null,null,null,null,null,null,null,null,null,null,null,null,null,null,null,null,null,null,null,null,null,null,null,null,null,null,null,null,null,null,null,null,null,null,null,null,"...\n...%"]
["2.număr de gospodării care beneficiază de servicii TIC\nprocent din total gospodării în comună\n",null,null,null,null,null,null,null,null,null,null,null,null,null,null,null,null,null,null,null,null,null,null,null,null,null,null,null,null,null,null,null,null,null,null,null,null,null,null,null,null,null,null,"...\n...%"]
["3.număr de benficiari - instituții publice - care beneficiază de servicii TIC",null,null,null,null,null,null,null,null,null,null,null,null,null,null,null,null,null,null,null,null,null,null,null,null,null,null,null,null,null,null,null,null,null,null,null,null,null,null,null,null,null,null,"..."]
["4.număr de locuri de muncă nou create",null,null,null,null,null,null,null,null,null,null,null,null,null,null,null,null,null,null,null,null,null,null,null,null,null,null,null,null,null,null,null,null,null,null,null,null,null,null,null,null,null,null,"..."]
[]
["Ind.nr.1-se completează cu numărul de beneficiari -populație, respectiv procent din total populație în comună, care vor beneficia de servicii TIC"]
["Ind.2-se completează cu număr de gospodării, respectiv procent din total gospodării în comună care vor beneficia de servicii TIC"]
["Ind.3-se completează cu număr de instiții publice care vor beneficia de servicii TIC"]
["Ind.4-se completează cu numărul de locuri de muncă care se vor crea prin proiect"]
[]
["Factori de risc"]
["I1. Valoarea sprijinului public nerambursabil (EURO)",null,null,null,null,null,null,null,null,null,null,null,null,null,null,null,null,null,null,null,null,null,null,null,null,null,null,null,null,null,null,null,null,null,null,null,null,null,null,null,null,null,null,null,null,null,null,null,null,null,null,"Punctaj obţinut"]
["•",null,"> 50.000",null,null,null,null,null,null,null,null,null,null,null,null,null,null,null,null,null,null,null,null,null,null,null,null,null,null,null,null,null,null,null,null,null,null,null,null,null,null,null,null,null,null,null,null,null,null,null,null,5]
["•",null,"30.001 > 50.000",null,null,null,null,null,null,null,null,null,null,null,null,null,null,null,null,null,null,null,null,null,null,null,null,null,null,null,null,null,null,null,null,null,null,null,null,null,null,null,null,null,null,null,null,null,null,null,null,4]
["•",null,"15.001 > 30.000",null,null,null,null,null,null,null,null,null,null,null,null,null,null,null,null,null,null,null,null,null,null,null,null,null,null,null,null,null,null,null,null,null,null,null,null,null,null,null,null,null,null,null,null,null,null,null,null,3]
["•",null,"5.000 ≤ 15.000",null,null,null,null,null,null,null,null,null,null,null,null,null,null,null,null,null,null,null,null,null,null,null,null,null,null,null,null,null,null,null,null,null,null,null,null,null,null,null,null,null,null,null,null,null,null,null,null,1]
[]
["I2. Complexitatea investitiei"]
["Solicitanți Publici",null,null,null,null,null,null,null,null,null,null,null,null,null,null,null,null,null,null,null,"Punctaj obţinut",null,null,null,null,null,null,null,null,null,"Solicitanți Privați",null,null,null,null,null,null,null,null,null,null,null,null,null,null,null,null,null,null,null,null,"Punctaj obţinut"]
["•",null,"Investiție nouă",null,null,null,null,null,null,null,null,null,null,null,null,null,null,null,null,null,null,null,null,null,null,null,null,5,null,null,"•",null,"Investiție nouă",null,null,null,null,null,null,null,null,null,null,null,null,null,null,null,null,null,null,null,null,null,null,null,null,null,5]
["•",null,"Modernizări cu C+M",null,null,null,null,null,null,null,null,null,null,null,null,null,null,null,null,null,null,null,null,null,null,null,null,4,null,null,"•",null,"Modernizări cu C+M",null,null,null,null,null,null,null,null,null,null,null,null,null,null,null,null,null,null,null,null,null,null,null,null,null,4]
[]
["I3. Riscul proiectului d.p.d.v. al raportului procentual între Cheltuielile suportate de Solicitant și Valoarea ajutorului nerambursabil",null,null,null,null,null,null,null,null,null,null,null,null,null,null,null,null,null,null,null,null,null,null,null,null,null,null,null,null,null,null,null,null,null,null,null,null,null,null,null,null,null,null,null,null,null,null,null,null,null,null,"Punctaj obţinut"]
["Total valoare proiect(fără TVA)\n% = --------------------------------------------------------- x 100\nValoarea ajutorului nerambursabil solicitat"]
["•",null,"> 110%",null,null,null,null,null,null,null,null,null,null,null,null,null,null,null,null,null,null,null,null,null,null,null,null,null,null,null,null,null,null,null,null,null,null,null,null,null,null,null,null,null,null,null,null,null,null,null,null,5]
["•",null,"între 101 si 110%",null,null,null,null,null,null,null,null,null,null,null,null,null,null,null,null,null,null,null,null,null,null,null,null,null,null,null,null,null,null,null,null,null,null,null,null,null,null,null,null,null,null,null,null,null,null,null,null,3]
["•",null," = 100%",null,null,null,null,null,null,null,null,null,null,null,null,null,null,null,null,null,null,null,null,null,null,null,null,null,null,null,null,null,null,null,null,null,null,null,null,null,null,null,null,null,null,null,null,null,null,null,null,1]
[]
["I4. Capacitatea solicitantului de a manageria proiectul, experiența în implementarea proiectelor finanțate din fonduri comunitare",null,null,null,null,null,null,null,null,null,null,null,null,null,null,null,null,null,null,null,null,null,null,null,null,null,null,null,null,null,null,null,null,null,null,null,null,null,null,null,null,null,null,null,null,null,null,null,null,null,null,"Punctaj obţinut"]
["•",null,"Solicitant care nu a implementat un alt proiect SAPARD/FEADR, comunitar sau\nnu a obținut asistență financiară nerambursabilă din partea altui instrument\nfinanciar.",null,null,null,null,null,null,null,null,null,null,null,null,null,null,null,null,null,null,null,null,null,null,null,null,null,null,null,null,null,null,null,null,null,null,null,null,null,null,null,null,null,null,null,null,null,null,null,null,5]
["•",null,"Solicitant care are experiența implementării și care a finalizat un proiect\nSAPARD/FEADR, comunitar sau obținut asistență financiară nerambursabilă din partea altui instrument financiar ",null,null,null,null,null,null,null,null,null,null,null,null,null,null,null,null,null,null,null,null,null,null,null,null,null,null,null,null,null,null,null,null,null,null,null,null,null,null,null,null,null,null,null,null,null,null,null,null,3]
["•",null,"Solicitant care are experiența implementării și care a finalizat un proiect\nSAPARD/FEADR și un alt proiect comunitar sau obținut din asistența financiară\nnerambursabilă din partea altui instrument financiar",null,null,null,null,null,null,null,null,null,null,null,null,null,null,null,null,null,null,null,null,null,null,null,null,null,null,null,null,null,null,null,null,null,null,null,null,null,null,null,null,null,null,null,null,null,null,null,null,1]
["TOTAL"]
[]
["Pentru selectarea proiectelor ce vor fi verificate prin sondaj, se va determina riscul fiecărui proiect folosind cei 4 factori de risc (I1, I2, I3 și I4 )."]
["Factorii de risc sunt adaptați conform specificului Sub-Măsurii 7.2 din PNDR 2014-2020."]
["Pentru fiecare proiect se va determina punctajul fiecărui factor de risc pe o scară de la 1 la 5."]
[]
[]
["Codul unic de inregistrare APIA"]
["In cazul in care nu aveti un cod unic de inregistrare APIA, completati acest formular."]
[]
["FORMULAR"]
["de înscriere în Registrul unic de identificare pentru solicitanții de finanțare prin măsurile"]
["Programului naţional de dezvoltare rurală 2014 - 2020"]
[]
["Denumire solicitant:"]
[]
["Categorie Solicitant:"]
[]
["Sediul / Adresa"]
[]
["Ţara",null,null,null,null,"România",null,null,null,null,null,null,null,null,"Judeţul",null,null,null,null,null,null,null,null,null,null,null,null,null,null,null,null,null,null,"oraşul"]
[]
["comuna",null,null,null,null,null,null,null,null,null,null,null,null,null,null,null,null,null,null,null,null,"satul",null,null,null,null,null,null,null,null,null,null,null,null,null,null,null,null,null,"strada"]
[]
["nr.",null,null,null,null,null,null,null,"bl.",null,null,null,null,null,"et.",null,null,null,null,"ap.",null,null,null,null,null,"sectorul",null,null,null,null,null,null,null,null,null,null,null,null,"codul poştal"]
[]
["Număr de telefon",null,null,null,null,null,null,null,null,null,null,null,null,null,null,null,null,null,null,null,null,null,null,"Fax",null,null,null,null,null,null,null,null,null,null,null,null,null,null,"E-mail"]
[]
["Număr de înregistrare în registrul comerțului/Registrul asociațiilor și fundațiilor"]
[]
["CUI / CIF"]
[]
["Cod CAEN pentru activitatea principală"]
[]
["Cod CAEN pentru activitatea secundară pentru care se solicită înregistrarea în Registrul unic de identificare"]
[]
["Cod IBAN"]
[]
["deschis la Banca"]
[]
["Sucursala / Agenție"]
[]
["Prin reprezentant legal, doamna/domnul"]
[]
["cu CNP",null,null,null,null,null,null,null,null,null,null,null,null,null,null,"solicit înscrierea în Registrul unic de identificare -Agenţia de Plăţi şi Intervenţie pentru Agricultură."]
[]
["Am luat la cunoştinţă că orice modificare a informaţiilor de mai sus trebuie furnizată către APIA în termen de maximum 10 zile de la producerea acestora.\nlucrătoare de la producerea acestora.\nDeclar pe propria răspundere că cele de mai sus sunt conforme cu realitatea.\nSunt de acord ca datele din cerere să fie introduse în baza de date a Sistemului Integrat de Administrare şi Control, procesate şi\nverificate în vederea înscrierii în Registrul unic de identificare şi transmise autorităţilor responsabile în vederea elaborării de studii\nstatistice şi de evaluări economice, în condiţiile Legii nr. 677-2001 pentru protecţia persoanelor cu privire la prelucrarea datelor cu\ncaracter personal şi libera circulaţie a acestor date, cu modificarile şi completările ulterioare."]
["Declar pe propria răspundere că cele de mai sus sunt conforme cu realitatea."]
[]
["Reprezentant legal",null,null,null,null,null,null,null,null,null,null,null,null,null,null,null,null,null,null,null,null,null,null,null,null,null,null,null,null,null,null,null,null,null,null,null,null,null,null,null,null,null,null,"Data:"]
[]
["Numele şi prenumele"]
[]
["Semnătura "]

{"sheet":"Anexa 1","index":1,"n_rows":134,"n_cols":52,"rows_kept":134,"cut":false,"hidden":false,"merged":[[129,4,129,41],[130,4,130,41],[129,42,129,50],[130,42,130,50],[129,51,129,60],[15,0,15,3],[15,4,15,41],[15,42,15,50],[15,51,15,60],[16,4,16,41],[16,42,16,50],[16,51,16,60],[16,0,16,3],[22,0,22,3],[22,4,22,41],[22,42,22,50],[22,51,22,60],[31,4,31,41],[32,0,32,3],[32,4,32,41],[21,4,21,41],[21,42,21,50],[21,51,21,60],[20,0,20,3],[133,0,133,41],[133,42,133,60],[86,7,86,41],[87,42,88,60],[89,42,89,50],[89,51,89,60],[90,7,90,60],[91,0,91,60],[94,0,94,3],[94,4,94,41],[94,42,94,50],[94,51,94,60],[123,4,123,41],[123,42,123,50],[123,51,123,60],[127,51,127,60],[126,4,126,41],[127,4,127,41],[128,4,128,41],[128,51,128,60],[123,0,123,3],[130,0,130,3],[120,0,120,3],[120,4,120,41],[0,7,0,41],[1,7,1,41],[1,42,2,60],[2,7,2,41],[7,0,7,60],[8,0,8,3],[8,4,8,41],[8,42,8,50],[8,51,8,60],[3,7,3,41],[3,42,3,50],[3,51,3,60],[4,7,4,60],[5,0,5,60],[6,0,6,60],[21,0,21,3],[20,4,20,41],[20,42,20,50],[20,51,20,60],[28,6,28,41],[26,6,26,41],[27,6,27,41],[24,6,24,41],[29,42,29,50],[28,0,28,3],[25,42,25,50],[26,42,26,50],[27,42,27,50],[23,0,23,3],[23,42,23,50],[24,0,24,3],[23,51,23,60],[24,42,24,50],[24,51,24,60],[25,0,25,3],[26,0,26,3],[27,0,27,3],[30,42,30,50],[31,42,31,50],[29,51,29,60],[30,51,30,60],[31,51,31,60],[29,4,29,41],[30,4,30,41],[34,0,34,3],[34,42,34,50],[32,51,32,60],[33,0,33,3],[33,4,33,41],[33,42,33,50],[33,51,33,60],[32,42,32,50],[29,0,29,3],[30,0,30,3],[31,0,31,3],[35,4,35,41],[35,42,35,50],[35,51,35,60],[34,4,34,41],[34,51,34,60],[35,0,35,3],[40,0,40,3],[40,42,40,50],[41,0,41,41],[41,42,41,60],[39,0,39,3],[39,42,39,50],[39,51,39,60],[36,0,36,3],[37,4,37,41],[40,51,40,60],[39,4,39,41],[40,4,40,41],[37,0,37,3],[37,42,37,50],[37,51,37,60],[38,0,38,3],[38,42,38,50],[38,51,38,60],[36,4,36,41],[36,42,36,50],[36,51,36,60],[38,4,38,41],[56,0,56,3],[56,4,56,41],[56,42,56,50],[56,51,56,60],[57,0,57,3],[57,4,57,41],[57,42,57,50],[57,51,57,60],[51,42,51,50],[51,51,51,60],[52,0,52,3],[52,4,52,41],[52,42,52,50],[52,51,52,60],[51,4,51,41],[53,42,53,50],[53,51,53,60],[54,0,54,3],[54,4,54,41],[55,0,55,3],[55,4,55,41],[55,42,55,50],[55,51,55,60],[60,0,60,3],[60,4,60,41],[60,42,60,50],[60,51,60,60],[61,0,61,3],[61,4,61,41],[61,42,61,50],[61,51,61,60],[58,0,58,3],[58,4,58,41],[58,42,58,50],[58,51,58,60],[59,0,59,3],[59,4,59,41],[59,42,59,50],[59,51,59,60],[64,0,64,3],[64,4,64,41],[64,42,64,50],[64,51,64,60],[66,0,66,3],[66,42,66,50],[66,51,66,60],[65,0,65,3],[62,0,62,3],[62,4,62,41],[62,42,62,50],[62,51,62,60],[63,0,63,3],[63,4,63,41],[63,42,63,50],[63,51,63,60],[71,42,71,50],[71,51,71,60],[70,6,70,41],[71,6,71,41],[72,4,72,41],[67,0,67,3],[67,42,67,50],[67,51,67,60],[69,0,69,3],[69,42,69,50],[69,51,69,60],[69,6,69,41],[73,42,73,50],[73,51,73,60],[73,0,73,3],[73,4,73,41],[70,0,70,3],[43,7,43,41],[44,7,44,41],[44,42,45,60],[46,42,46,50],[46,51,46,60],[47,7,47,60],[48,0,48,60],[54,42,54,50],[54,51,54,60],[50,0,50,60],[53,0,53,3],[53,4,53,41],[49,0,49,60],[51,0,51,3],[45,7,45,41],[46,7,46,41],[70,42,70,50],[70,51,70,60],[71,0,71,3],[83,0,83,3],[83,4,83,41],[81,0,81,3],[81,4,81,41],[83,42,83,50],[83,51,83,60],[76,51,76,60],[65,4,65,41],[65,42,65,50],[65,51,65,60],[66,6,66,41],[67,6,67,41],[68,0,68,3],[68,6,68,41],[68,42,68,50],[68,51,68,60],[74,42,74,50],[74,51,74,60],[74,0,74,3],[74,4,74,41],[75,0,75,3],[75,4,75,41],[72,0,72,3],[72,42,72,50],[79,51,79,60],[80,0,80,3],[80,4,80,41],[80,42,80,50],[80,51,80,60],[77,0,77,3],[77,4,77,41],[77,42,77,50],[77,51,77,60],[78,0,78,3],[78,4,78,41],[78,42,78,50],[78,51,78,60],[75,51,75,60],[76,0,76,3],[76,4,76,41],[76,42,76,50],[13,4,13,41],[13,42,13,50],[13,51,13,60],[10,42,10,50],[10,51,10,60],[11,0,11,3],[11,4,11,41],[11,42,11,50],[28,42,28,50],[25,51,25,60],[26,51,26,60],[27,51,27,60],[28,51,28,60],[19,0,19,3],[19,4,19,41],[19,42,19,50],[19,51,19,60],[25,6,25,41],[23,6,23,41],[72,51,72,60],[9,51,9,60],[18,4,18,41],[18,42,18,50],[18,51,18,60],[17,0,17,3],[17,4,17,41],[17,42,17,50],[17,51,17,60],[14,0,14,3],[14,4,14,41],[14,42,14,50],[14,51,14,60],[18,0,18,3],[9,0,9,3],[9,4,9,41],[9,42,9,50],[10,0,10,3],[10,4,10,41],[11,51,11,60],[12,0,12,3],[12,4,12,41],[12,42,12,50],[12,51,12,60],[13,0,13,3],[119,0,119,3],[119,4,119,41],[119,42,119,50],[110,0,110,3],[75,42,75,50],[79,0,79,3],[79,4,79,41],[79,42,79,50],[84,0,84,41],[84,42,84,60],[81,42,81,50],[81,51,81,60],[82,0,82,3],[82,4,82,41],[82,42,82,50],[82,51,82,60],[110,4,110,41],[110,42,110,50],[111,0,111,3],[111,4,111,41],[110,51,110,60],[111,42,111,50],[111,51,111,60],[112,0,112,3],[132,0,132,3],[132,4,132,41],[132,42,132,50],[132,51,132,60],[122,4,122,41],[122,42,122,50],[122,51,122,60],[131,0,131,3],[131,4,131,41],[131,42,131,50],[131,51,131,60],[126,0,126,3],[126,42,126,50],[126,51,126,60],[127,0,127,3],[127,42,127,50],[124,0,124,3],[124,42,124,50],[124,51,124,60],[125,0,125,3],[125,42,125,50],[125,51,125,60],[130,51,130,60],[128,42,128,50],[112,42,112,50],[112,51,112,60],[113,0,113,3],[114,0,114,3],[115,0,115,3],[116,0,116,3],[117,0,117,3],[118,0,118,3],[112,4,112,41],[113,4,113,41],[114,4,114,41],[113,42,113,50],[114,42,114,50],[113,51,113,60],[114,51,114,60],[121,42,121,50],[121,51,121,60],[121,4,121,41],[124,4,124,41],[125,4,125,41],[115,4,115,41],[116,4,116,41],[117,4,117,41],[118,4,118,41],[117,51,117,60],[118,51,118,60],[115,42,115,50],[116,42,116,50],[117,42,117,50],[118,42,118,50],[115,51,115,60],[116,51,116,60],[120,42,120,50],[120,51,120,60],[119,51,119,60],[108,42,108,50],[108,51,108,60],[105,4,105,41],[105,42,105,50],[105,51,105,60],[106,4,106,41],[106,42,106,50],[106,51,106,60],[109,0,109,3],[109,4,109,41],[109,42,109,50],[109,51,109,60],[108,0,108,3],[108,4,108,41],[99,0,99,3],[99,4,99,41],[99,42,99,50],[99,51,99,60],[100,0,100,3],[100,4,100,41],[100,42,100,50],[100,51,100,60],[107,4,107,41],[107,42,107,50],[107,51,107,60],[103,4,103,41],[103,42,103,50],[103,51,103,60],[104,4,104,41],[104,42,104,50],[104,51,104,60],[101,4,101,41],[101,42,101,50],[101,51,101,60],[102,4,102,41],[102,42,102,50],[102,51,102,60],[105,0,105,3],[87,7,87,41],[88,7,88,41],[89,7,89,41],[95,0,95,3],[95,4,95,41],[95,42,95,50],[95,51,95,60],[97,0,97,3],[97,4,97,41],[97,42,97,50],[97,51,97,60],[98,0,98,3],[98,4,98,41],[98,42,98,50],[92,0,92,60],[93,0,93,60],[96,0,96,3],[96,4,96,41],[96,42,96,50],[96,51,96,60],[98,51,98,60]]}
[null,null,null,null,null,null,null,"MINISTERUL AGRICULTURII ŞI DEZVOLTĂRII RURALE"]
[null,null,null,null,null,null,null,null,null,null,null,null,null,null,null,null,null,null,null,null,null,null,null,null,null,null,null,null,null,null,null,null,null,null,null,null,null,null,null,null,null,null,"Anexa A1"]
[null,null,null,null,null,null,null,"AGENŢIA PENTRU FINANŢAREA INVESTIŢIILOR RURALE"]
[null,null,null,null,null,null,null,null,null,null,null,null,null,null,null,null,null,null,null,null,null,null,null,null,null,null,null,null,null,null,null,null,null,null,null,null,null,null,null,null,null,null,null,null,null,null,null,null,null,null,null,"Nr.2"]
[null,null,null,null,null,null,null,"Deviz financiar- Capitolul 3 - Cheltuieli pentru proiectare şi asistenţa tehnică - EURO"]
[]
[]
["(Titlu deviz)"]
["Nr.crt",null,null,null,"Specificaţie",null,null,null,null,null,null,null,null,null,null,null,null,null,null,null,null,null,null,null,null,null,null,null,null,null,null,null,null,null,null,null,null,null,null,null,null,null,"Valoare eligibilă",null,null,null,null,null,null,null,null,"Valoare\nneeligibilă"]
[1,null,null,null,"Cheltuieli pentru studii de teren (geotehnice, geologice, hidrologice, hidrogeologice, fotogrammetrice, topografice şi de stabilitate a terenului pe care se amplasează obiectivul de investiţie)"]
[2,null,null,null,"Cheltuieli pentru obţinere de avize, acorduri şi autorizaţii - total, din care:",null,null,null,null,null,null,null,null,null,null,null,null,null,null,null,null,null,null,null,null,null,null,null,null,null,null,null,null,null,null,null,null,null,null,null,null,null,{"$f":"SUM(AQ12:AY21)","v":0},null,null,null,null,null,null,null,null,{"$f":"SUM(AZ12:BI21)","v":0}]
[null,null,null,null,"1. obţinerea/prelungirea valabilităţii ceritificatului de urbanism"]
[null,null,null,null,"2. obţinerea/prelungirea valabilităţii autorizaţiei de construire/desfiinţare, obţinere autorizaţii de scoatere din circuitul agricol"]
[null,null,null,null,"3. obţinerea avizelor şi acordurilor pentru racorduri şi branşamente la reţelele publice de apă, canalizare, gaze, termoficare, energie electrică, telefonie etc."]
[null,null,null,null,"4. obţinere aviz sanitar, sanitar-veterinar şi fitosanitar"]
[null,null,null,null,"5. obţinerea certificatului de nomenclatură stradală şi adresa"]
[null,null,null,null,"6. întocmirea documentaţiei, obţinerea numărului Cadastral provizoriu şi înregistrarea terenului în Cartea Funciară"]
[null,null,null,null,"7. obţinerea avizului PSI"]
[null,null,null,null,"8. obţinerea acordului de mediu"]
[null,null,null,null,"9. căi ferate"]
[null,null,null,null,"10. alte avize, acorduri şi autorizaţii solicitate prin lege"]
[3,null,null,null,"3 Proiectare şi inginerie - total, din care:",null,null,null,null,null,null,null,null,null,null,null,null,null,null,null,null,null,null,null,null,null,null,null,null,null,null,null,null,null,null,null,null,null,null,null,null,null,{"$f":"AQ23+AQ30+AQ31+AQ32","v":0},null,null,null,null,null,null,null,null,{"$f":"AZ23+AZ30+AZ31+AZ32","v":0}]
[null,null,null,null,"1. Cheltuieli pentru elaborarea tuturor fazelor de proiectare - total, din care:",null,null,null,null,null,null,null,null,null,null,null,null,null,null,null,null,null,null,null,null,null,null,null,null,null,null,null,null,null,null,null,null,null,null,null,null,null,{"$f":"SUM(AQ24:AY29)","v":0},null,null,null,null,null,null,null,null,{"$f":"SUM(AZ24:BI29)","v":0}]
[null,null,null,null,null,null,"a. studiu de prefezabilitate"]
[null,null,null,null,null,null,"b. studiu de fezabilitate"]
[null,null,null,null,null,null,"c. proiect tehnic"]
[null,null,null,null,null,null,"d. detalii de execuţie"]
[null,null,null,null,null,null,"e. verificarea tehnică a proiectării"]
[null,null,null,null,null,null,"f. elaborarea certificatului de performanţa energetică a clădirii"]
[null,null,null,null,"2. Documentaţii necesare pentru obţinerea acordurilor, avizelor şi autorizaţiilor aferente obiectivului de investitii"]
[null,null,null,null,"3. Cheltuielile pentru expertiza tehnică efectuată pentru construcţii începute şi neterminate sau care urmează a fi modificate prin proiect (modernizări, consolidări etc.)"]
[null,null,null,null,"4. Cheltuielile pentru efectuarea auditului energetic"]
[4,null,null,null,"Organizarea procedurilor de achiziţie"]
[5,null,null,null,"Cheltuieli pentru consultanţă - total, din care:",null,null,null,null,null,null,null,null,null,null,null,null,null,null,null,null,null,null,null,null,null,null,null,null,null,null,null,null,null,null,null,null,null,null,null,null,null,{"$f":"SUM(AQ35:AY36)","v":0},null,null,null,null,null,null,null,null,{"$f":"SUM(AZ35:BI36)","v":0}]
[null,null,null,null,"1. plata serviciilor de consultanţă la elaborarea memoriului justificativ, studiilor de piaţă, de evaluare, la întocmirea cererii de finanţare"]
[null,null,null,null,"2. plata serviciilor de consultanţă în domeniul managementului investiţiei sau administrarea contractului de execuţie"]
[6,null,null,null,"Cheltuieli pentru asistenţa tehnică - total, din care:",null,null,null,null,null,null,null,null,null,null,null,null,null,null,null,null,null,null,null,null,null,null,null,null,null,null,null,null,null,null,null,null,null,null,null,null,null,{"$f":"SUM(AQ38:AY39)","v":0},null,null,null,null,null,null,null,null,{"$f":"SUM(AZ38:BI39)","v":0}]
[null,null,null,null,"1. asistenţa tehnică din partea proiectantului în cazul când aceasta nu intră în tarifarea proiectării"]
[null,null,null,null,"2. plata diriginţilor de şantier desemnaţi de autoritatea contractantă, autorizaţi conform prevederilor legale pentru verificarea execuţiei lucrărilor de construcţii şi instalaţii"]
[null,null,null,null,"Total valoare fără TVA",null,null,null,null,null,null,null,null,null,null,null,null,null,null,null,null,null,null,null,null,null,null,null,null,null,null,null,null,null,null,null,null,null,null,null,null,null,{"$f":"AQ37+AQ34+AQ22+AQ11+AQ10","v":0},null,null,null,null,null,null,null,null,{"$f":"AZ37+AZ34+AZ33+AZ22+AZ11+AZ10","v":0}]
[null,null,null,null,"Valoare TVA (aferentă cheltuielilor eligibile şi neeligibile)"]
["TOTAL DEVIZ FINANCIAR 1 (inclusiv TVA)",null,null,null,null,null,null,null,null,null,null,null,null,null,null,null,null,null,null,null,null,null,null,null,null,null,null,null,null,null,null,null,null,null,null,null,null,null,null,null,null,null,{"$f":"AQ40+AZ40+AQ41+AZ41","v":0}]
[]
[null,null,null,null,null,null,null,"MINISTERUL AGRICULTURII ŞI DEZVOLTĂRII RURALE"]
[null,null,null,null,null,null,null,null,null,null,null,null,null,null,null,null,null,null,null,null,null,null,null,null,null,null,null,null,null,null,null,null,null,null,null,null,null,null,null,null,null,null,"Anexa A1"]
[null,null,null,null,null,null,null,"AGENŢIA PENTRU FINANŢAREA INVESTIŢIILOR RURALE"]
[null,null,null,null,null,null,null,null,null,null,null,null,null,null,null,null,null,null,null,null,null,null,null,null,null,null,null,null,null,null,null,null,null,null,null,null,null,null,null,null,null,null,null,null,null,null,null,null,null,null,null,"Nr.3"]
[null,null,null,null,null,null,null,"Deviz financiar- Capitolul 3 - Cheltuieli pentru proiectare şi asistenţa tehnică - EURO"]
[]
[]
["(Titlu deviz)"]
["Nr.crt",null,null,null,"Specificaţie",null,null,null,null,null,null,null,null,null,null,null,null,null,null,null,null,null,null,null,null,null,null,null,null,null,null,null,null,null,null,null,null,null,null,null,null,null,"Valoare eligibilă",null,null,null,null,null,null,null,null,"Valoare\nneeligibilă"]
[1,null,null,null,"Cheltuieli pentru studii de teren (geotehnice, geologice, hidrologice, hidrogeologice, fotogrammetrice, topografice şi de stabilitate a terenului pe care se amplasează obiectivul de investiţie)"]
[2,null,null,null,"Cheltuieli pentru obţinere de avize, acorduri şi autorizaţii - total, din care:",null,null,null,null,null,null,null,null,null,null,null,null,null,null,null,null,null,null,null,null,null,null,null,null,null,null,null,null,null,null,null,null,null,null,null,null,null,{"$f":"SUM(AQ55:AY64)","v":0},null,null,null,null,null,null,null,null,{"$f":"SUM(AZ55:BI64)","v":0}]
[null,null,null,null,"1. obţinerea/prelungirea valabilităţii ceritificatului de urbanism"]
[null,null,null,null,"2. obţinerea/prelungirea valabilităţii autorizaţiei de construire/desfiinţare, obţinere autorizaţii de scoatere din circuitul agricol"]
[null,null,null,null,"3. obţinerea avizelor şi acordurilor pentru racorduri şi branşamente la reţelele publice de apă, canalizare, gaze, termoficare, energie electrică, telefonie etc."]
[null,null,null,null,"4. obţinere aviz sanitar, sanitar-veterinar şi fitosanitar"]
[null,null,null,null,"5. obţinerea certificatului de nomenclatură stradală şi adresa"]
[null,null,null,null,"6. întocmirea documentaţiei, obţinerea numărului Cadastral provizoriu şi înregistrarea terenului în Cartea Funciară"]
[null,null,null,null,"7. obţinerea avizului PSI"]
[null,null,null,null,"8. obţinerea acordului de mediu"]
[null,null,null,null,"9. căi ferate"]
[null,null,null,null,"10. alte avize, acorduri şi autorizaţii solicitate prin lege"]
[3,null,null,null,"3 Proiectare şi inginerie - total, din care:",null,null,null,null,null,null,null,null,null,null,null,null,null,null,null,null,null,null,null,null,null,null,null,null,null,null,null,null,null,null,null,null,null,null,null,null,null,{"$f":"AQ66+AQ73+AQ74+AQ75","v":0},null,null,null,null,null,null,null,null,{"$f":"AZ66+AZ73+AZ74+AZ75","v":0}]
[null,null,null,null,"1. Cheltuieli pentru elaborarea tuturor fazelor de proiectare - total, din care:",null,null,null,null,null,null,null,null,null,null,null,null,null,null,null,null,null,null,null,null,null,null,null,null,null,null,null,null,null,null,null,null,null,null,null,null,null,{"$f":"SUM(AQ67:AY72)","v":0},null,null,null,null,null,null,null,null,{"$f":"SUM(AZ67:BI72)","v":0}]
[null,null,null,null,null,null,"a. studiu de prefezabilitate"]
[null,null,null,null,null,null,"b. studiu de fezabilitate"]
[null,null,null,null,null,null,"c. proiect tehnic"]
[null,null,null,null,null,null,"d. detalii de execuţie"]
[null,null,null,null,null,null,"e. verificarea tehnică a proiectării"]
[null,null,null,null,null,null,"f. elaborarea certificatului de performanţa energetică a clădirii"]
[null,null,null,null,"2. Documentaţii necesare pentru obţinerea acordurilor, avizelor şi autorizaţiilor aferente obiectivului de investitii"]
[null,null,null,null,"3. Cheltuielile pentru expertiza tehnică efectuată pentru construcţii începute şi neterminate sau care urmează a fi modificate prin proiect (modernizări, consolidări etc.)"]
[null,null,null,null,"4. Cheltuielile pentru efectuarea auditului energetic"]
[4,null,null,null,"Organizarea procedurilor de achiziţie"]
[5,null,null,null,"Cheltuieli pentru consultanţă - total, din care:",null,null,null,null,null,null,null,null,null,null,null,null,null,null,null,null,null,null,null,null,null,null,null,null,null,null,null,null,null,null,null,null,null,null,null,null,null,{"$f":"SUM(AQ78:AY79)","v":0},null,null,null,null,null,null,null,null,{"$f":"SUM(AZ78:BI79)","v":0}]
[null,null,null,null,"1. plata serviciilor de consultanţă la elaborarea memoriului justificativ, studiilor de piaţă, de evaluare, la întocmirea cererii de finanţare"]
[null,null,null,null,"2. plata serviciilor de consultanţă în domeniul managementului investiţiei sau administrarea contractului de execuţie"]
[6,null,null,null,"Cheltuieli pentru asistenţa tehnică - total, din care:",null,null,null,null,null,null,null,null,null,null,null,null,null,null,null,null,null,null,null,null,null,null,null,null,null,null,null,null,null,null,null,null,null,null,null,null,null,{"$f":"SUM(AQ81:AY82)","v":0},null,null,null,null,null,null,null,null,{"$f":"SUM(AZ81:BI82)","v":0}]
[null,null,null,null,"1. asistenţa tehnică din partea proiectantului în cazul când aceasta nu intră în tarifarea proiectării"]
[null,null,null,null,"2. plata diriginţilor de şantier desemnaţi de autoritatea contractantă, autorizaţi conform prevederilor legale pentru verificarea execuţiei lucrărilor de construcţii şi instalaţii"]
[null,null,null,null,"Total valoare fără TVA",null,null,null,null,null,null,null,null,null,null,null,null,null,null,null,null,null,null,null,null,null,null,null,null,null,null,null,null,null,null,null,null,null,null,null,null,null,{"$f":"AQ80+AQ77+AQ65+AQ54+AQ53","v":0},null,null,null,null,null,null,null,null,{"$f":"AZ80+AZ77+AZ76+AZ65+AZ54+AZ53","v":0}]
[null,null,null,null,"Valoare TVA (aferentă cheltuielilor eligibile şi neeligibile)"]
["TOTAL DEVIZ FINANCIAR 1 (inclusiv TVA)",null,null,null,null,null,null,null,null,null,null,null,null,null,null,null,null,null,null,null,null,null,null,null,null,null,null,null,null,null,null,null,null,null,null,null,null,null,null,null,null,null,{"$f":"AQ83+AZ83+AQ84+AZ84","v":0}]
[]
[null,null,null,null,null,null,null,"MINISTERUL AGRICULTURII ŞI DEZVOLTĂRII RURALE"]
[null,null,null,null,null,null,null,null,null,null,null,null,null,null,null,null,null,null,null,null,null,null,null,null,null,null,null,null,null,null,null,null,null,null,null,null,null,null,null,null,null,null,"Anexa A1\nHG 907/2016"]
[null,null,null,null,null,null,null,"AGENŢIA PENTRU FINANŢAREA INVESTIŢIILOR RURALE"]
[]
[null,null,null,null,null,null,null,"Deviz financiar- Capitolul 3 - Cheltuieli pentru proiectare şi asistenţa tehnică - EURO"]
[]
[]
["(Titlu deviz)"]
["Nr.crt",null,null,null,"Specificaţie",null,null,null,null,null,null,null,null,null,null,null,null,null,null,null,null,null,null,null,null,null,null,null,null,null,null,null,null,null,null,null,null,null,null,null,null,null,"Valoare eligibilă",null,null,null,null,null,null,null,null,"Valoare\nneeligibilă"]
["3.1",null,null,null,"Cheltuieli pentru studii - total din care:",null,null,null,null,null,null,null,null,null,null,null,null,null,null,null,null,null,null,null,null,null,null,null,null,null,null,null,null,null,null,null,null,null,null,null,null,null,{"$f":"AQ97+AQ98+AQ99","v":0},null,null,null,null,null,null,null,null,{"$f":"AZ97+AZ98+AZ99","v":0}]
[null,null,null,null,"3.1.1 Studii de teren: studii geotehnice, geologice, hidrologice, hidrogeotehnice,\nfotogrammetrice, topografica şi de stabilitate ale terenului pe care se amplasează obiectivul de investiţie "]
[null,null,null,null,"3.1.2 Raport privind impactul asupra mediului"]
[null,null,null,null,"3.1.3 Studii de specialitate necesare în funcţie de specificul investiţiei"]
["3.2",null,null,null,"Documentaţii-suport şi cheltuieli pentru obţinerea de avize, acorduri şi\nautorizaţii",null,null,null,null,null,null,null,null,null,null,null,null,null,null,null,null,null,null,null,null,null,null,null,null,null,null,null,null,null,null,null,null,null,null,null,null,null,{"$f":"AQ101+AQ102+AQ103+AQ106+AQ107+AQ108+AQ109","v":0},null,null,null,null,null,null,null,null,{"$f":"AZ101+AZ102+AZ103+AZ104+AZ105+AZ106+AZ107+AZ108+AZ109","v":0}]
[null,null,null,null,"1. obţinerea/prelungirea valabilităţii ceritificatului de urbanism"]
[null,null,null,null,"2. obţinerea/prelungirea valabilităţii autorizaţiei de construire/desfiinţare"]
[null,null,null,null,"3. obţinerea avizelor şi acordurilor pentru racorduri şi branşamente la reţele publice\nde alimentare cu apă, canalizare, alimentare cu gaze, alimentare cu agent termic,\nenergie electrică, telefonie"]
[null,null,null,null,"4. obţinerea certificatului de nomenclatură stradală şi adresă"]
[null,null,null,null,"5. întocmirea documentaţiei, obţinerea numărului cadastral provizoriu şi\nînregistrarea terenului în cartea funciară"]
[null,null,null,null,"6. obţinerea actului administrativ al autorităţii competente pentru protecţia mediului"]
[null,null,null,null,"7. obţinerea avizului de protecţie civilă"]
[null,null,null,null,"8. avizul de specialitate în cazul obiectivelor de patrimoniu"]
[null,null,null,null,"9. alte avize, acorduri şi autorizaţii"]
["3.3",null,null,null,"Cheltuieli pentru expertizarea tehnică a construcţiilor existente, a structurilor\nşi/sau, după caz, a proiectelor tehnice, inclusiv întocmirea de către expertul\ntehnic a raportului de expertiză tehnică",null,null,null,null,null,null,null,null,null,null,null,null,null,null,null,null,null,null,null,null,null,null,null,null,null,null,null,null,null,null,null,null,null,null,null,null,null,0,null,null,null,null,null,null,null,null,0]
["3.4",null,null,null,"Cheltuieli pentru certificarea performanţei energetice şi auditul energetic al clădirilor",null,null,null,null,null,null,null,null,null,null,null,null,null,null,null,null,null,null,null,null,null,null,null,null,null,null,null,null,null,null,null,null,null,null,null,null,null,0,null,null,null,null,null,null,null,null,0]
["3.5",null,null,null,"Cheltuieli pentru proiectare",null,null,null,null,null,null,null,null,null,null,null,null,null,null,null,null,null,null,null,null,null,null,null,null,null,null,null,null,null,null,null,null,null,null,null,null,null,{"$f":"AQ113+AQ114+AQ115+AQ116+AQ117+AQ118","v":0},null,null,null,null,null,null,null,null,{"$f":"AZ113+AZ114+AZ115+AZ116+AZ117+AZ118","v":0}]
[null,null,null,null,"3.5.1 Temă de proiectare"]
[null,null,null,null,"3.5.2 Studiu de prefezabilitate"]
[null,null,null,null,"3.5.3 Studiu de fezabilitate/documentaţie de avizare a lucrărilor de intervenţii şi\ndeviz general"]
[null,null,null,null,"3.5.4 Documentaţiile tehnice necesare în vederea obţinerii avizelor/acordurilor/\nautorizaţiilor"]
[null,null,null,null,"3.5.5 Verificarea tehnică de calitate a proiectului tehnic şi a detaliilor de execuţie"]
[null,null,null,null,"3.5.6 Proiect tehnic şi detalii de execuţie"]
["3.6",null,null,null,"Cheltuieli aferente organizării şi derulării procedurilor de achiziţii publice",null,null,null,null,null,null,null,null,null,null,null,null,null,null,null,null,null,null,null,null,null,null,null,null,null,null,null,null,null,null,null,null,null,null,null,null,null,null,null,null,null,null,null,null,null,null,{"$f":"AZ120+AZ121+AZ122+AZ123","v":0}]
[null,null,null,null,"1. Cheltuieli aferente întocmirii documentaţiei de atribuire şi multiplicării acesteia (exclusiv cele cumpărate de ofertanţi)"]
[null,null,null,null,"2. Cheltuieli cu onorariile, transportul, cazarea şi diurna membrilor desemnaţi în comisiile de evaluare"]
[null,null,null,null,"3. Anunţuri de intenţie, de participare şi de atribuire a contractelor, corespondenţă\nprin poştă, fax, poştă electronică în legătură cu procedurile de achiziţie publică"]
[null,null,null,null,"4. Cheltuieli aferente organizării şi derulării procedurilor de achiziţii publice"]
["3.7",null,null,null,"Cheltuieli pentru consultanţă",null,null,null,null,null,null,null,null,null,null,null,null,null,null,null,null,null,null,null,null,null,null,null,null,null,null,null,null,null,null,null,null,null,null,null,null,null,{"$f":"AQ125","v":0},null,null,null,null,null,null,null,null,{"$f":"AZ125+AZ126","v":0}]
[null,null,null,null,"3.7.1 Managementul de proiect pentru obiectivul de investiţii"]
[null,null,null,null,"3.7.2 Auditul financiar"]
["3.8",null,null,null,"Cheltuieli pentru asistenţă tehnică",null,null,null,null,null,null,null,null,null,null,null,null,null,null,null,null,null,null,null,null,null,null,null,null,null,null,null,null,null,null,null,null,null,null,null,null,null,{"$f":"AQ128+AQ131","v":0},null,null,null,null,null,null,null,null,{"$f":"AZ128+AZ131","v":0}]
[null,null,null,null,"3.8.1. Asistenţă tehnică din partea proiectantului",null,null,null,null,null,null,null,null,null,null,null,null,null,null,null,null,null,null,null,null,null,null,null,null,null,null,null,null,null,null,null,null,null,null,null,null,null,{"$f":"AQ129+AQ130","v":0},null,null,null,null,null,null,null,null,{"$f":"AZ129+AZ130","v":0}]
[null,null,null,null,"    1.1. pe perioada de execuţie a lucrărilor"]
[null,null,null,null,"     1.2. pentru participarea proiectantului la fazele incluse în programul de control al\nlucrărilor de execuţie, avizat de către Inspectoratul de Stat în Construcţii"]
[null,null,null,null,"3.8.2 Dirigenţie de şantier, asigurată de personal tehnic de specialitate, autorizat"]
[null,null,null,null,"Total valoare fără TVA",null,null,null,null,null,null,null,null,null,null,null,null,null,null,null,null,null,null,null,null,null,null,null,null,null,null,null,null,null,null,null,null,null,null,null,null,null,{"$f":"AQ127+AQ124+AQ112+AQ111+AQ110+AQ100+AQ96","v":0},null,null,null,null,null,null,null,null,{"$f":"AZ127+AZ124+AZ119+AZ112+AZ111+AZ110+AZ100+AZ96","v":0}]
[null,null,null,null,"Valoare TVA (aferentă cheltuielilor eligibile şi neeligibile)"]
["TOTAL DEVIZ FINANCIAR 1 (inclusiv TVA)",null,null,null,null,null,null,null,null,null,null,null,null,null,null,null,null,null,null,null,null,null,null,null,null,null,null,null,null,null,null,null,null,null,null,null,null,null,null,null,null,null,{"$f":"AQ132+AZ132+AQ133+AZ133","v":0}]

{"sheet":"Anexa 2","index":2,"n_rows":95,"n_cols":52,"rows_kept":95,"cut":false,"hidden":false,"merged":[[43,51,43,60],[0,7,0,41],[1,7,1,41],[1,42,2,60],[2,7,2,41],[3,7,3,41],[3,42,3,50],[3,51,3,60],[42,0,42,41],[42,42,42,50],[42,51,42,60],[9,0,9,41],[9,42,9,50],[9,51,9,60],[10,0,10,41],[10,42,10,50],[10,51,10,60],[4,7,4,60],[5,0,5,60],[6,0,6,60],[7,0,7,60],[8,0,8,3],[8,4,8,41],[8,42,8,60],[13,0,13,3],[13,4,13,41],[13,42,13,50],[13,51,13,60],[14,0,14,3],[14,4,14,41],[14,42,14,50],[14,51,14,60],[11,0,11,3],[11,4,11,41],[11,42,11,50],[11,51,11,60],[12,0,12,3],[12,4,12,41],[12,42,12,50],[12,51,12,60],[17,0,17,3],[17,4,17,41],[17,42,17,50],[17,51,17,60],[18,0,18,3],[18,4,18,41],[18,42,18,50],[18,51,18,60],[15,0,15,3],[15,4,15,41],[15,42,15,50],[15,51,15,60],[16,0,16,3],[16,4,16,41],[16,42,16,50],[16,51,16,60],[19,0,19,3],[19,4,19,41],[19,42,19,50],[19,51,19,60],[20,0,20,60],[21,0,21,3],[21,4,21,41],[21,42,21,50],[21,51,21,60],[25,0,25,3],[25,4,25,41],[25,42,25,50],[25,51,25,60],[26,0,26,3],[26,4,26,41],[26,42,26,50],[26,51,26,60],[22,0,22,3],[22,4,22,41],[22,42,22,50],[22,51,22,60],[23,0,23,60],[24,0,24,3],[24,4,24,41],[24,42,24,50],[24,51,24,60],[29,0,29,41],[29,42,29,50],[29,51,29,60],[30,0,30,41],[30,42,30,60],[27,0,27,3],[27,4,27,41],[27,42,27,50],[27,51,27,60],[28,0,28,41],[28,42,28,50],[28,51,28,60],[56,0,56,60],[58,0,58,3],[58,4,58,41],[58,42,58,50],[58,51,58,60],[57,0,57,3],[57,4,57,41],[57,42,57,50],[57,51,57,60],[63,0,63,41],[63,42,63,60],[61,42,61,50],[61,51,61,60],[62,42,62,50],[62,51,62,60],[61,0,61,41],[62,0,62,41],[59,0,59,3],[59,4,59,41],[59,42,59,50],[59,51,59,60],[60,0,60,3],[60,4,60,41],[60,42,60,50],[60,51,60,60],[44,0,44,3],[44,4,44,41],[44,42,44,50],[44,51,44,60],[45,0,45,3],[45,4,45,41],[45,42,45,50],[45,51,45,60],[33,7,33,41],[34,7,34,41],[34,42,35,60],[35,7,35,41],[36,7,36,41],[36,42,36,50],[36,51,36,60],[43,0,43,41],[43,42,43,50],[41,0,41,3],[41,4,41,41],[41,42,41,60],[39,0,39,60],[40,0,40,60],[37,7,37,60],[38,0,38,60],[48,0,48,3],[48,4,48,41],[48,42,48,50],[48,51,48,60],[49,0,49,3],[49,4,49,41],[49,42,49,50],[49,51,49,60],[46,42,46,50],[46,51,46,60],[47,0,47,3],[47,4,47,41],[47,42,47,50],[47,51,47,60],[46,0,46,3],[46,4,46,41],[54,4,54,41],[54,42,54,50],[54,51,54,60],[55,0,55,3],[55,4,55,41],[55,42,55,50],[55,51,55,60],[50,0,50,3],[50,4,50,41],[50,42,50,50],[50,51,50,60],[51,0,51,3],[51,4,51,41],[51,42,51,50],[51,51,51,60],[52,42,52,50],[52,51,52,60],[52,0,52,3],[52,4,52,41],[53,0,53,60],[54,0,54,3],[94,0,94,41],[94,42,94,60],[91,0,91,3],[91,4,91,41],[91,42,91,50],[91,51,91,60],[92,0,92,41],[92,42,92,50],[92,51,92,60],[87,0,87,3],[87,4,87,41],[87,42,87,50],[87,51,87,60],[93,0,93,41],[93,42,93,50],[93,51,93,60],[88,0,88,3],[88,4,88,41],[88,42,88,50],[88,51,88,60],[89,0,89,3],[89,4,89,41],[89,42,89,50],[89,51,89,60],[90,0,90,3],[90,4,90,41],[90,42,90,50],[90,51,90,60],[84,0,84,3],[84,4,84,41],[84,42,84,50],[84,51,84,60],[85,0,85,3],[85,4,85,41],[85,42,85,50],[85,51,85,60],[86,0,86,60],[81,0,81,3],[81,4,81,41],[81,42,81,50],[81,51,81,60],[82,0,82,3],[82,4,82,41],[82,42,82,50],[82,51,82,60],[83,0,83,60],[79,4,79,41],[79,42,79,50],[79,51,79,60],[80,0,80,3],[80,4,80,41],[80,42,80,50],[80,51,80,60],[77,0,77,3],[77,4,77,41],[77,42,77,50],[77,51,77,60],[78,0,78,3],[78,4,78,41],[78,42,78,50],[78,51,78,60],[79,0,79,3],[66,7,66,41],[67,7,67,41],[67,42,68,60],[68,7,68,41],[69,7,69,41],[69,42,69,50],[69,51,69,60],[75,0,75,41],[75,42,75,50],[75,51,75,60],[76,0,76,41],[76,42,76,50],[76,51,76,60],[70,7,70,60],[71,0,71,60],[72,0,72,60],[73,0,73,60],[74,0,74,3],[74,4,74,41],[74,42,74,60]]}
[null,null,null,null,null,null,null,"MINISTERUL AGRICULTURII ŞI DEZVOLTĂRII RURALE"]
[null,null,null,null,null,null,null,null,null,null,null,null,null,null,null,null,null,null,null,null,null,null,null,null,null,null,null,null,null,null,null,null,null,null,null,null,null,null,null,null,null,null,"Anexa A2"]
[null,null,null,null,null,null,null,"AGENŢIA PENTRU FINANŢAREA INVESTIŢIILOR RURALE"]
[null,null,null,null,null,null,null,null,null,null,null,null,null,null,null,null,null,null,null,null,null,null,null,null,null,null,null,null,null,null,null,null,null,null,null,null,null,null,null,null,null,null,null,null,null,null,null,null,null,null,null,"Nr.2"]
[null,null,null,null,null,null,null,"DEVIZ PE OBIECT *"]
[]
[]
["(Descriere obiect de construcţie)"]
["Nr. crt.",null,null,null,"Denumire",null,null,null,null,null,null,null,null,null,null,null,null,null,null,null,null,null,null,null,null,null,null,null,null,null,null,null,null,null,null,null,null,null,null,null,null,null,"Valoarea pe categorii de lucrări, fară TVA - EURO"]
[null,null,null,null,null,null,null,null,null,null,null,null,null,null,null,null,null,null,null,null,null,null,null,null,null,null,null,null,null,null,null,null,null,null,null,null,null,null,null,null,null,null,"Valoare eligibilă",null,null,null,null,null,null,null,null,"Valoare\nneeligibilă"]
["I - LUCRĂRI DE CONSTRUCŢII ŞI INSTALAŢII"]
[1,null,null,null,"Terasamente"]
[2,null,null,null,"Construcţii : rezistenţă (fundaţii, structură de rezistenţă) şi arhitectură (închideri exterioare, compartimentări, finisaje)"]
[3,null,null,null,"Izolaţii"]
[4,null,null,null,"Instalaţii electrice"]
[5,null,null,null,"Instalaţii sanitare"]
[6,null,null,null,"Instalaţii de încălzire, ventilare, climatizare. PSI, radio-tv, intranet"]
[7,null,null,null,"Instalaţii de alimentare cu gaze naturale"]
[8,null,null,null,"Instalaţii de telecomunicaţii"]
[null,null,null,null,"TOTAL I ( fără TVA)",null,null,null,null,null,null,null,null,null,null,null,null,null,null,null,null,null,null,null,null,null,null,null,null,null,null,null,null,null,null,null,null,null,null,null,null,null,{"$f":"SUM(AQ12:AY19)","v":0},null,null,null,null,null,null,null,null,{"$f":"SUM(AZ12:BI19)","v":0}]
["II - MONTAJ"]
[9,null,null,null,"Montaj utilaje şi echipamente tehnologice"]
[null,null,null,null,"TOTAL II ( fără TVA)",null,null,null,null,null,null,null,null,null,null,null,null,null,null,null,null,null,null,null,null,null,null,null,null,null,null,null,null,null,null,null,null,null,null,null,null,null,{"$f":"SUM(AQ22)","v":0},null,null,null,null,null,null,null,null,{"$f":"SUM(AZ22)","v":0}]
["III - PROCURARE"]
[10,null,null,null,"Utilaje şi echipamente tehnologice"]
[11,null,null,null,"Utilaje şi echipamente de transport, utilaje şi echipamente fară montaj, mijloace de transport, alte achiziţii specifice"]
[12,null,null,null,"Dotări"]
[null,null,null,null,"TOTAL III ( fără TVA)",null,null,null,null,null,null,null,null,null,null,null,null,null,null,null,null,null,null,null,null,null,null,null,null,null,null,null,null,null,null,null,null,null,null,null,null,null,{"$f":"SUM(AQ25:AY27)","v":0},null,null,null,null,null,null,null,null,{"$f":"SUM(AZ25:BI27)","v":0}]
["TOTAL ( TOTAL I + TOTAL II +TOTAL III) fără TVA",null,null,null,null,null,null,null,null,null,null,null,null,null,null,null,null,null,null,null,null,null,null,null,null,null,null,null,null,null,null,null,null,null,null,null,null,null,null,null,null,null,{"$f":"AQ28+AQ23+AQ20","v":0},null,null,null,null,null,null,null,null,{"$f":"AZ28+AZ23+AZ20","v":0}]
["TVA aferent cheltuielilor eligibile şi neeligibile"]
["TOTAL DEVIZ PE OBIECT (inclusiv TVA)",null,null,null,null,null,null,null,null,null,null,null,null,null,null,null,null,null,null,null,null,null,null,null,null,null,null,null,null,null,null,null,null,null,null,null,null,null,null,null,null,null,{"$f":"AQ29+AZ29+AQ30+AZ30","v":0}]
[]
[]
[null,null,null,null,null,null,null,"MINISTERUL AGRICULTURII ŞI DEZVOLTĂRII RURALE"]
[null,null,null,null,null,null,null,null,null,null,null,null,null,null,null,null,null,null,null,null,null,null,null,null,null,null,null,null,null,null,null,null,null,null,null,null,null,null,null,null,null,null,"Anexa A2"]
[null,null,null,null,null,null,null,"AGENŢIA PENTRU FINANŢAREA INVESTIŢIILOR RURALE"]
[null,null,null,null,null,null,null,null,null,null,null,null,null,null,null,null,null,null,null,null,null,null,null,null,null,null,null,null,null,null,null,null,null,null,null,null,null,null,null,null,null,null,null,null,null,null,null,null,null,null,null,"Nr.3"]
[null,null,null,null,null,null,null,"DEVIZ PE OBIECT *"]
[]
[]
["(Descriere obiect de construcţie)"]
["Nr. crt.",null,null,null,"Denumire",null,null,null,null,null,null,null,null,null,null,null,null,null,null,null,null,null,null,null,null,null,null,null,null,null,null,null,null,null,null,null,null,null,null,null,null,null,"Valoarea pe categorii de lucrări, fară TVA - EURO"]
[null,null,null,null,null,null,null,null,null,null,null,null,null,null,null,null,null,null,null,null,null,null,null,null,null,null,null,null,null,null,null,null,null,null,null,null,null,null,null,null,null,null,"Valoare eligibilă",null,null,null,null,null,null,null,null,"Valoare\nneeligibilă"]
["I - LUCRĂRI DE CONSTRUCŢII ŞI INSTALAŢII"]
[1,null,null,null,"Terasamente"]
[2,null,null,null,"Construcţii : rezistenţă (fundaţii, structură de rezistenţă) şi arhitectură (închideri exterioare, compartimentări, finisaje)"]
[3,null,null,null,"Izolaţii"]
[4,null,null,null,"Instalaţii electrice"]
[5,null,null,null,"Instalaţii sanitare"]
[6,null,null,null,"Instalaţii de încălzire, ventilare, climatizare. PSI, radio-tv, intranet"]
[7,null,null,null,"Instalaţii de alimentare cu gaze naturale"]
[8,null,null,null,"Instalaţii de telecomunicaţii"]
[null,null,null,null,"TOTAL I ( fără TVA)",null,null,null,null,null,null,null,null,null,null,null,null,null,null,null,null,null,null,null,null,null,null,null,null,null,null,null,null,null,null,null,null,null,null,null,null,null,{"$f":"SUM(AQ45:AY52)","v":0},null,null,null,null,null,null,null,null,{"$f":"SUM(AZ45:BI52)","v":0}]
["II - MONTAJ"]
[9,null,null,null,"Montaj utilaje şi echipamente tehnologice"]
[null,null,null,null,"TOTAL II ( fără TVA)",null,null,null,null,null,null,null,null,null,null,null,null,null,null,null,null,null,null,null,null,null,null,null,null,null,null,null,null,null,null,null,null,null,null,null,null,null,{"$f":"SUM(AQ55)","v":0},null,null,null,null,null,null,null,null,{"$f":"SUM(AZ55)","v":0}]
["III - PROCURARE"]
[10,null,null,null,"Utilaje şi echipamente tehnologice"]
[11,null,null,null,"Utilaje şi echipamente de transport, utilaje şi echipamente fară montaj, mijloace de transport, alte achiziţii specifice"]
[12,null,null,null,"Dotări"]
[null,null,null,null,"TOTAL III ( fără TVA)",null,null,null,null,null,null,null,null,null,null,null,null,null,null,null,null,null,null,null,null,null,null,null,null,null,null,null,null,null,null,null,null,null,null,null,null,null,{"$f":"SUM(AQ58:AY60)","v":0},null,null,null,null,null,null,null,null,{"$f":"SUM(AZ58:BI60)","v":0}]
["TOTAL ( TOTAL I + TOTAL II +TOTAL III) fără TVA",null,null,null,null,null,null,null,null,null,null,null,null,null,null,null,null,null,null,null,null,null,null,null,null,null,null,null,null,null,null,null,null,null,null,null,null,null,null,null,null,null,{"$f":"AQ61+AQ56+AQ53","v":0},null,null,null,null,null,null,null,null,{"$f":"AZ61+AZ56+AZ53","v":0}]
["TVA aferent cheltuielilor eligibile şi neeligibile"]
["TOTAL DEVIZ PE OBIECT (inclusiv TVA)",null,null,null,null,null,null,null,null,null,null,null,null,null,null,null,null,null,null,null,null,null,null,null,null,null,null,null,null,null,null,null,null,null,null,null,null,null,null,null,null,null,{"$f":"AQ62+AZ62+AQ63+AZ63","v":0}]
[]
[]
[null,null,null,null,null,null,null,"MINISTERUL AGRICULTURII ŞI DEZVOLTĂRII RURALE"]
[null,null,null,null,null,null,null,null,null,null,null,null,null,null,null,null,null,null,null,null,null,null,null,null,null,null,null,null,null,null,null,null,null,null,null,null,null,null,null,null,null,null,"Anexa A2\nHG 907/2016"]
[null,null,null,null,null,null,null,"AGENŢIA PENTRU FINANŢAREA INVESTIŢIILOR RURALE"]
[]
[null,null,null,null,null,null,null,"DEVIZ PE OBIECT *"]
[]
[]
["(Descriere obiect de construcţie)"]
["Nr. crt.",null,null,null,"Denumire",null,null,null,null,null,null,null,null,null,null,null,null,null,null,null,null,null,null,null,null,null,null,null,null,null,null,null,null,null,null,null,null,null,null,null,null,null,"Valoarea pe categorii de lucrări, fară TVA - EURO"]
["Cap. 4 + Cheltuieli pentru investiţia de bază",null,null,null,null,null,null,null,null,null,null,null,null,null,null,null,null,null,null,null,null,null,null,null,null,null,null,null,null,null,null,null,null,null,null,null,null,null,null,null,null,null,"Valoare eligibilă",null,null,null,null,null,null,null,null,"Valoare\nneeligibilă"]
["   I - LUCRĂRI DE CONSTRUCŢII ŞI INSTALAŢII"]
["4.1",null,null,null,"Construcţii şi instalaţii"]
[null,null,null,null,"4.1.1 Terasamente, sistematizare pe verticală şi amenajări exterioare"]
[null,null,null,null,"4.1.2 Rezistenţă"]
[null,null,null,null,"4.1.3 Arhitectură"]
[null,null,null,null,"4.1.4 Instalaţii"]
[null,null,null,null,"TOTAL I ( fără TVA)",null,null,null,null,null,null,null,null,null,null,null,null,null,null,null,null,null,null,null,null,null,null,null,null,null,null,null,null,null,null,null,null,null,null,null,null,null,{"$f":"SUM(AQ79:AY82)","v":0},null,null,null,null,null,null,null,null,{"$f":"SUM(AZ79:BI82)","v":0}]
["   II - MONTAJ"]
["4.2",null,null,null,"Montaj utilaje şi echipamente tehnologice"]
[null,null,null,null,"TOTAL II ( fără TVA)",null,null,null,null,null,null,null,null,null,null,null,null,null,null,null,null,null,null,null,null,null,null,null,null,null,null,null,null,null,null,null,null,null,null,null,null,null,{"$f":"SUM(AQ85)","v":0},null,null,null,null,null,null,null,null,{"$f":"SUM(AZ85)","v":0}]
["   III - PROCURARE"]
["4.3",null,null,null,"Utilaje, echipamente tehnologice şi funcţionale care necesită montaj"]
["4.4",null,null,null,"Utilaje, echipamente tehnologice şi funcţionale care nu necesită\nmontaj şi echipamente de transport"]
["4.5",null,null,null,"Dotări"]
["4.6",null,null,null,"Active necorporale"]
[null,null,null,null,"TOTAL III ( fără TVA)",null,null,null,null,null,null,null,null,null,null,null,null,null,null,null,null,null,null,null,null,null,null,null,null,null,null,null,null,null,null,null,null,null,null,null,null,null,{"$f":"SUM(AQ88:AY91)","v":0},null,null,null,null,null,null,null,null,{"$f":"SUM(AZ88:BI91)","v":0}]
["TOTAL ( TOTAL I + TOTAL II +TOTAL III) fără TVA",null,null,null,null,null,null,null,null,null,null,null,null,null,null,null,null,null,null,null,null,null,null,null,null,null,null,null,null,null,null,null,null,null,null,null,null,null,null,null,null,null,{"$f":"AQ92+AQ86+AQ83","v":0},null,null,null,null,null,null,null,null,{"$f":"AZ92+AZ86+AZ83","v":0}]
["TVA aferent cheltuielilor eligibile şi neeligibile"]
["TOTAL DEVIZ PE OBIECT (inclusiv TVA)",null,null,null,null,null,null,null,null,null,null,null,null,null,null,null,null,null,null,null,null,null,null,null,null,null,null,null,null,null,null,null,null,null,null,null,null,null,null,null,null,null,{"$f":"AQ93+AZ93+AQ94+AZ94","v":0}]

{"sheet":"Anexa 3","index":3,"n_rows":121,"n_cols":52,"rows_kept":121,"cut":false,"hidden":false,"merged":[[102,0,102,41],[102,42,102,60],[103,0,103,3],[103,4,103,41],[103,42,103,50],[103,51,103,60],[104,0,104,60],[105,0,105,3],[105,4,105,41],[105,42,105,50],[105,51,105,60],[82,7,82,41],[82,42,83,60],[84,42,84,50],[84,51,84,60],[85,7,85,60],[86,0,86,60],[90,0,90,3],[90,4,90,41],[90,42,90,50],[90,51,90,60],[83,7,83,41],[84,7,84,41],[46,0,46,60],[47,0,47,60],[48,0,48,60],[49,0,49,60],[50,0,50,3],[50,4,50,41],[3,7,3,41],[3,42,3,50],[3,51,3,60],[4,7,4,60],[5,0,5,60],[6,0,6,60],[14,0,14,3],[14,4,14,41],[14,42,14,50],[14,51,14,60],[15,0,15,3],[15,4,15,41],[15,42,15,50],[15,51,15,60],[12,0,12,3],[12,4,12,41],[12,42,12,50],[12,51,12,60],[1,7,1,41],[1,42,2,60],[2,7,2,41],[10,0,10,3],[10,4,10,41],[10,42,10,50],[10,51,10,60],[11,0,11,3],[11,4,11,41],[11,42,11,50],[11,51,11,60],[7,0,7,60],[8,0,8,60],[9,0,9,3],[9,4,9,41],[9,42,9,50],[9,51,9,60],[13,0,13,3],[13,4,13,41],[13,42,13,50],[13,51,13,60],[18,0,18,3],[18,4,18,41],[18,42,18,50],[18,51,18,60],[19,0,19,3],[19,4,19,41],[19,42,19,50],[19,51,19,60],[16,0,16,3],[16,4,16,41],[16,42,16,50],[16,51,16,60],[17,0,17,3],[17,4,17,41],[17,42,17,50],[17,51,17,60],[22,0,22,60],[23,0,23,3],[23,4,23,41],[23,42,23,50],[23,51,23,60],[24,0,24,60],[20,0,20,41],[20,42,20,60],[21,0,21,3],[21,4,21,41],[21,42,21,50],[21,51,21,60],[27,0,27,3],[27,4,27,41],[27,42,27,50],[27,51,27,60],[28,0,28,3],[28,4,28,41],[28,42,28,50],[28,51,28,60],[25,0,25,3],[25,4,25,41],[25,42,25,50],[25,51,25,60],[26,0,26,3],[26,4,26,41],[26,42,26,50],[26,51,26,60],[31,0,31,3],[31,4,31,41],[31,42,31,50],[31,51,31,60],[32,0,32,3],[32,4,32,41],[32,42,32,50],[32,51,32,60],[29,0,29,3],[29,4,29,41],[29,42,29,50],[29,51,29,60],[30,0,30,3],[30,4,30,41],[30,42,30,50],[30,51,30,60],[35,0,35,3],[35,4,35,41],[35,42,35,50],[35,51,35,60],[36,0,36,3],[36,4,36,41],[36,42,36,50],[36,51,36,60],[33,0,33,3],[33,4,33,41],[33,42,33,50],[33,51,33,60],[34,0,34,3],[34,4,34,41],[34,42,34,50],[34,51,34,60],[42,7,42,41],[42,42,43,60],[43,7,43,41],[44,7,44,41],[44,42,44,50],[44,51,44,60],[45,7,45,60],[37,0,37,3],[37,4,37,41],[37,42,37,50],[37,51,37,60],[38,0,38,3],[38,4,38,41],[38,42,38,60],[52,0,52,3],[52,4,52,41],[52,42,52,50],[52,51,52,60],[53,0,53,3],[53,4,53,41],[53,42,53,50],[53,51,53,60],[50,42,50,50],[50,51,50,60],[51,0,51,3],[51,4,51,41],[51,42,51,50],[51,51,51,60],[56,0,56,3],[56,4,56,41],[56,42,56,50],[56,51,56,60],[57,0,57,3],[57,4,57,41],[57,42,57,50],[57,51,57,60],[54,0,54,3],[54,4,54,41],[54,42,54,50],[54,51,54,60],[55,0,55,3],[55,4,55,41],[55,42,55,50],[55,51,55,60],[60,0,60,3],[60,4,60,41],[60,42,60,50],[60,51,60,60],[61,0,61,41],[61,42,61,60],[58,0,58,3],[58,4,58,41],[58,42,58,50],[58,51,58,60],[59,0,59,3],[59,4,59,41],[59,42,59,50],[59,51,59,60],[62,0,62,3],[62,4,62,41],[62,42,62,50],[62,51,62,60],[63,0,63,60],[64,0,64,3],[64,4,64,41],[64,42,64,50],[64,51,64,60],[65,0,65,60],[66,0,66,3],[66,4,66,41],[66,42,66,50],[66,51,66,60],[67,0,67,3],[67,4,67,41],[67,42,67,50],[67,51,67,60],[70,0,70,3],[70,4,70,41],[70,42,70,50],[70,51,70,60],[71,0,71,3],[71,4,71,41],[71,42,71,50],[71,51,71,60],[68,0,68,3],[68,4,68,41],[68,42,68,50],[68,51,68,60],[69,0,69,3],[69,4,69,41],[69,42,69,50],[69,51,69,60],[74,0,74,3],[74,4,74,41],[74,42,74,50],[74,51,74,60],[75,0,75,3],[75,4,75,41],[75,42,75,50],[75,51,75,60],[72,0,72,3],[72,4,72,41],[72,42,72,50],[72,51,72,60],[73,0,73,3],[73,4,73,41],[73,42,73,50],[73,51,73,60],[78,0,78,3],[78,4,78,41],[78,42,78,50],[78,51,78,60],[79,0,79,3],[79,4,79,41],[79,42,79,60],[76,0,76,3],[76,4,76,41],[76,42,76,50],[76,51,76,60],[77,0,77,3],[77,4,77,41],[77,42,77,50],[77,51,77,60],[120,0,120,3],[120,4,120,41],[118,0,118,3],[118,4,118,41],[118,42,118,50],[118,51,118,60],[119,0,119,3],[119,4,119,41],[119,42,119,50],[119,51,119,60],[120,42,120,60],[117,0,117,3],[117,4,117,41],[117,42,117,50],[117,51,117,60],[114,0,114,3],[114,4,114,41],[114,42,114,50],[114,51,114,60],[116,0,116,3],[116,4,116,41],[116,42,116,50],[116,51,116,60],[115,0,115,3],[115,4,115,41],[115,42,115,50],[115,51,115,60],[112,0,112,3],[112,4,112,41],[112,42,112,50],[112,51,112,60],[113,0,113,3],[113,4,113,41],[113,42,113,50],[113,51,113,60],[110,0,110,3],[110,4,110,41],[110,42,110,50],[110,51,110,60],[111,0,111,3],[111,4,111,41],[111,42,111,50],[111,51,111,60],[108,0,108,3],[108,4,108,41],[108,42,108,50],[108,51,108,60],[109,0,109,3],[109,4,109,41],[109,42,109,50],[109,51,109,60],[106,0,106,60],[107,0,107,3],[107,4,107,41],[107,42,107,50],[107,51,107,60],[95,4,95,41],[95,42,95,50],[95,51,95,60],[101,0,101,3],[101,4,101,41],[101,42,101,50],[101,51,101,60],[98,0,98,3],[98,4,98,41],[98,42,98,50],[98,51,98,60],[100,0,100,3],[100,4,100,41],[100,42,100,50],[100,51,100,60],[99,0,99,3],[99,4,99,41],[99,42,99,50],[99,51,99,60],[97,0,97,3],[97,4,97,41],[97,42,97,50],[97,51,97,60],[94,0,94,3],[94,4,94,41],[94,42,94,50],[94,51,94,60],[87,0,87,60],[88,0,88,60],[96,0,96,3],[96,4,96,41],[96,42,96,50],[96,51,96,60],[92,0,92,3],[92,4,92,41],[92,42,92,50],[92,51,92,60],[93,0,93,3],[93,4,93,41],[93,42,93,50],[93,51,93,60],[89,0,89,60],[91,0,91,3],[91,4,91,41],[91,42,91,50],[91,51,91,60],[95,0,95,3]]}
[]
[null,null,null,null,null,null,null,"MINISTERUL AGRICULTURII ŞI DEZVOLTĂRII RURALE",null,null,null,null,null,null,null,null,null,null,null,null,null,null,null,null,null,null,null,null,null,null,null,null,null,null,null,null,null,null,null,null,null,null,"Anexa A3"]
[]
[null,null,null,null,null,null,null,"AGENŢIA PENTRU FINANŢAREA INVESTIŢIILOR RURALE",null,null,null,null,null,null,null,null,null,null,null,null,null,null,null,null,null,null,null,null,null,null,null,null,null,null,null,null,null,null,null,null,null,null,null,null,null,null,null,null,null,null,null,"Nr.2"]
[]
[]
[]
["(Titlu deviz)"]
["Deviz capitolul 2- Cheltuieli pentru asigurarea utilităţilor necesare obiectivului - EURO"]
["Nr.crt",null,null,null,"Specificaţie",null,null,null,null,null,null,null,null,null,null,null,null,null,null,null,null,null,null,null,null,null,null,null,null,null,null,null,null,null,null,null,null,null,null,null,null,null,"Valoare eligibilă",null,null,null,null,null,null,null,null,"Valoare\nneeligibilă"]
[1,null,null,null,"Alimentare cu apă"]
[2,null,null,null,"Canalizare"]
[3,null,null,null,"Alimentare cu gaze naturale"]
[4,null,null,null,"Alimentare cu agent termic"]
[5,null,null,null,"Alimentare cu energie electrică"]
[6,null,null,null,"Telecomunicaţii (telefonie, radio-tv,etc)"]
[7,null,null,null,"Alte tipuri de reţele exterioare"]
[8,null,null,null,"Drumuri de acces"]
[null,null,null,null,"Total valoare fără TVA",null,null,null,null,null,null,null,null,null,null,null,null,null,null,null,null,null,null,null,null,null,null,null,null,null,null,null,null,null,null,null,null,null,null,null,null,null,{"$f":"SUM(AQ11:AY18)","v":0},null,null,null,null,null,null,null,null,{"$f":"SUM(AZ11:BI18)","v":0}]
[null,null,null,null,"Valoare TVA aferentă cheltuielilor eligibile şi neeligibile"]
["TOTAL DEVIZ CAPITOLUL 2 (inclusiv TVA)",null,null,null,null,null,null,null,null,null,null,null,null,null,null,null,null,null,null,null,null,null,null,null,null,null,null,null,null,null,null,null,null,null,null,null,null,null,null,null,null,null,{"$f":"AQ19+AZ19+AQ20+AZ20","v":0}]
[]
[" Deviz capitolul 5 - Alte cheltuieli - EURO"]
["Nr.crt",null,null,null,"Specificaţie",null,null,null,null,null,null,null,null,null,null,null,null,null,null,null,null,null,null,null,null,null,null,null,null,null,null,null,null,null,null,null,null,null,null,null,null,null,"Valoare eligibilă",null,null,null,null,null,null,null,null,"Valoare\nneeligibilă"]
[]
["5.1 ",null,null,null,"Organizare de şantier",null,null,null,null,null,null,null,null,null,null,null,null,null,null,null,null,null,null,null,null,null,null,null,null,null,null,null,null,null,null,null,null,null,null,null,null,null,{"$f":"SUM(AQ27:AY28)","v":0},null,null,null,null,null,null,null,null,{"$f":"SUM(AZ27:BI28)","v":0}]
["5.1.1",null,null,null,"lucrări de construcţii şi instalaţii aferente organizării de şantier"]
["5.1.2",null,null,null,"cheltuieli conexe organizării de şantier"]
["5.2",null,null,null,"Comisioane, taxe",null,null,null,null,null,null,null,null,null,null,null,null,null,null,null,null,null,null,null,null,null,null,null,null,null,null,null,null,null,null,null,null,null,null,null,null,null,{"$f":"SUM(AQ31:AY34)","v":0},null,null,null,null,null,null,null,null,{"$f":"SUM(AZ30:BI36)","v":0}]
[null,null,null,null,"comisionul băncii finanţatoare"]
[null,null,null,null,"cota aferentă Inspectoratului de Stat în Construcţii pentru controlul calităţii lucrărilor de construcţii"]
[null,null,null,null,"cota pentru controlul statului în amenajarea teritoriului, urbanism şi pentru autorizarea lucrărilor de construcţii"]
[null,null,null,null,"prime de asigurare din sarcina autorităţii contractante"]
[null,null,null,null,"alte cheltuieli de aceeaşi natură, stabilite în condiţiile legii"]
[null,null,null,null,"cota aferentă Casei Sociale a Constructorilor"]
["5.3",null,null,null," Cheltuieli diverse si neprevazute"]
[null,null,null,null,"TOTAL DEVIZ CAPITOLUL 5",null,null,null,null,null,null,null,null,null,null,null,null,null,null,null,null,null,null,null,null,null,null,null,null,null,null,null,null,null,null,null,null,null,null,null,null,null,{"$f":"AQ26+AQ29","v":0},null,null,null,null,null,null,null,null,{"$f":"AZ26+AZ29+AZ36","v":0}]
[null,null,null,null,"VALOARE TVA aferentă cheltuielilor eligibile şi neeligibile"]
[null,null,null,null,"TOTAL DEVIZ CAPITOLUL 5 ( inclusiv TVA)",null,null,null,null,null,null,null,null,null,null,null,null,null,null,null,null,null,null,null,null,null,null,null,null,null,null,null,null,null,null,null,null,null,null,null,null,null,{"$f":"AQ37+AZ37+AQ38+AZ38","v":0}]
[]
[]
[]
[null,null,null,null,null,null,null,"MINISTERUL AGRICULTURII ŞI DEZVOLTĂRII RURALE",null,null,null,null,null,null,null,null,null,null,null,null,null,null,null,null,null,null,null,null,null,null,null,null,null,null,null,null,null,null,null,null,null,null,"Anexa A3"]
[]
[null,null,null,null,null,null,null,"AGENŢIA PENTRU FINANŢAREA INVESTIŢIILOR RURALE",null,null,null,null,null,null,null,null,null,null,null,null,null,null,null,null,null,null,null,null,null,null,null,null,null,null,null,null,null,null,null,null,null,null,null,null,null,null,null,null,null,null,null,"Nr.3"]
[]
[]
[]
["(Titlu deviz)"]
["Deviz capitolul 2- Cheltuieli pentru asigurarea utilităţilor necesare obiectivului - EURO"]
["Nr.crt",null,null,null,"Specificaţie",null,null,null,null,null,null,null,null,null,null,null,null,null,null,null,null,null,null,null,null,null,null,null,null,null,null,null,null,null,null,null,null,null,null,null,null,null,"Valoare eligibilă",null,null,null,null,null,null,null,null,"Valoare\nneeligibilă"]
[1,null,null,null,"Alimentare cu apă"]
[2,null,null,null,"Canalizare"]
[3,null,null,null,"Alimentare cu gaze naturale"]
[4,null,null,null,"Alimentare cu agent termic"]
[5,null,null,null,"Alimentare cu energie electrică"]
[6,null,null,null,"Telecomunicaţii (telefonie, radio-tv,etc)"]
[7,null,null,null,"Alte tipuri de reţele exterioare"]
[8,null,null,null,"Drumuri de acces"]
[null,null,null,null,"Total valoare fără TVA",null,null,null,null,null,null,null,null,null,null,null,null,null,null,null,null,null,null,null,null,null,null,null,null,null,null,null,null,null,null,null,null,null,null,null,null,null,{"$f":"SUM(AQ52:AY59)","v":0},null,null,null,null,null,null,null,null,{"$f":"SUM(AZ52:BI59)","v":0}]
[null,null,null,null,"Valoare TVA aferentă cheltuielilor eligibile şi neeligibile"]
["TOTAL DEVIZ CAPITOLUL 2 (inclusiv TVA)",null,null,null,null,null,null,null,null,null,null,null,null,null,null,null,null,null,null,null,null,null,null,null,null,null,null,null,null,null,null,null,null,null,null,null,null,null,null,null,null,null,{"$f":"AQ60+AZ60+AQ61+AZ61","v":0}]
[]
[" Deviz capitolul 5 - Alte cheltuieli - EURO"]
["Nr.crt",null,null,null,"Specificaţie",null,null,null,null,null,null,null,null,null,null,null,null,null,null,null,null,null,null,null,null,null,null,null,null,null,null,null,null,null,null,null,null,null,null,null,null,null,"Valoare eligibilă",null,null,null,null,null,null,null,null,"Valoare\nneeligibilă"]
[]
["5.1 ",null,null,null,"Organizare de şantier",null,null,null,null,null,null,null,null,null,null,null,null,null,null,null,null,null,null,null,null,null,null,null,null,null,null,null,null,null,null,null,null,null,null,null,null,null,{"$f":"SUM(AQ68:AY69)","v":0},null,null,null,null,null,null,null,null,{"$f":"SUM(AZ68:BI69)","v":0}]
["5.1.1",null,null,null,"lucrări de construcţii şi instalaţii aferente organizării de şantier"]
["5.1.2",null,null,null,"cheltuieli conexe organizării de şantier"]
["5.2",null,null,null,"Comisioane, taxe",null,null,null,null,null,null,null,null,null,null,null,null,null,null,null,null,null,null,null,null,null,null,null,null,null,null,null,null,null,null,null,null,null,null,null,null,null,{"$f":"SUM(AQ72:AY75)","v":0},null,null,null,null,null,null,null,null,{"$f":"SUM(AZ71:BI77)","v":0}]
[null,null,null,null,"comisionul băncii finanţatoare"]
[null,null,null,null,"cota aferentă Inspectoratului de Stat în Construcţii pentru controlul calităţii lucrărilor de construcţii"]
[null,null,null,null,"cota pentru controlul statului în amenajarea teritoriului, urbanism şi pentru autorizarea lucrărilor de construcţii"]
[null,null,null,null,"prime de asigurare din sarcina autorităţii contractante"]
[null,null,null,null,"alte cheltuieli de aceeaşi natură, stabilite în condiţiile legii"]
[null,null,null,null,"cota aferentă Casei Sociale a Constructorilor"]
["5.3",null,null,null," Cheltuieli diverse si neprevazute"]
[null,null,null,null,"TOTAL DEVIZ CAPITOLUL 5",null,null,null,null,null,null,null,null,null,null,null,null,null,null,null,null,null,null,null,null,null,null,null,null,null,null,null,null,null,null,null,null,null,null,null,null,null,{"$f":"AQ67+AQ70","v":0},null,null,null,null,null,null,null,null,{"$f":"AZ67+AZ70+AZ77","v":0}]
[null,null,null,null,"VALOARE TVA aferentă cheltuielilor eligibile şi neeligibile"]
[null,null,null,null,"TOTAL DEVIZ CAPITOLUL 5 ( inclusiv TVA)",null,null,null,null,null,null,null,null,null,null,null,null,null,null,null,null,null,null,null,null,null,null,null,null,null,null,null,null,null,null,null,null,null,null,null,null,null,{"$f":"AQ78+AZ78+AQ79+AZ79","v":0}]
[]
[]
[null,null,null,null,null,null,null,"MINISTERUL AGRICULTURII ŞI DEZVOLTĂRII RURALE",null,null,null,null,null,null,null,null,null,null,null,null,null,null,null,null,null,null,null,null,null,null,null,null,null,null,null,null,null,null,null,null,null,null,"Anexa A3\nHG 907/2016"]
[]
[null,null,null,null,null,null,null,"AGENŢIA PENTRU FINANŢAREA INVESTIŢIILOR RURALE"]
[]
[]
[]
["(Titlu deviz)"]
["Deviz capitolul 2- Cheltuieli pentru asigurarea utilităţilor necesare obiectivului - EURO"]
["Nr.crt",null,null,null,"Specificaţie",null,null,null,null,null,null,null,null,null,null,null,null,null,null,null,null,null,null,null,null,null,null,null,null,null,null,null,null,null,null,null,null,null,null,null,null,null,"Valoare eligibilă",null,null,null,null,null,null,null,null,"Valoare\nneeligibilă"]
[1,null,null,null,"Alimentare cu apă"]
[2,null,null,null,"Canalizare"]
[3,null,null,null,"Alimentare cu gaze naturale"]
[4,null,null,null,"Alimentare cu agent termic"]
[5,null,null,null,"Alimentare cu energie electrică"]
[6,null,null,null,"Telecomunicaţii (telefonie, radio-tv,etc)"]
[7,null,null,null,"Drumuri de acces"]
[8,null,null,null,"Căi ferate industriale"]
[9,null,null,null,"Alte utilități"]
[null,null,null,null,"TOTAL DEVIZ CAPITOLUL 2",null,null,null,null,null,null,null,null,null,null,null,null,null,null,null,null,null,null,null,null,null,null,null,null,null,null,null,null,null,null,null,null,null,null,null,null,null,{"$f":"SUM(AQ92:AY100)","v":0},null,null,null,null,null,null,null,null,{"$f":"SUM(AZ92:BI100)","v":0}]
[null,null,null,null,"Valoare TVA aferentă cheltuielilor eligibile şi neeligibile"]
["TOTAL DEVIZ CAPITOLUL 2 (inclusiv TVA)",null,null,null,null,null,null,null,null,null,null,null,null,null,null,null,null,null,null,null,null,null,null,null,null,null,null,null,null,null,null,null,null,null,null,null,null,null,null,null,null,null,{"$f":"AQ101+AZ101+AQ102+AZ102","v":0}]
[]
[" Deviz capitolul 5 - Alte cheltuieli - EURO"]
["Nr.crt",null,null,null,"Specificaţie",null,null,null,null,null,null,null,null,null,null,null,null,null,null,null,null,null,null,null,null,null,null,null,null,null,null,null,null,null,null,null,null,null,null,null,null,null,"Valoare eligibilă",null,null,null,null,null,null,null,null,"Valoare\nneeligibilă"]
[]
["5.1 ",null,null,null,"Organizare de şantier",null,null,null,null,null,null,null,null,null,null,null,null,null,null,null,null,null,null,null,null,null,null,null,null,null,null,null,null,null,null,null,null,null,null,null,null,null,{"$f":"SUM(AQ109:AY110)","v":0},null,null,null,null,null,null,null,null,{"$f":"SUM(AZ109:BI110)","v":0}]
[null,null,null,null,"5.1.1 Lucrări de construcţii şi instalaţii aferente organizării de şantier"]
[null,null,null,null,"5.1.2 Cheltuieli conexe organizării de şantier"]
["5.2",null,null,null,"Comisioane, cote, taxe, costul creditului",null,null,null,null,null,null,null,null,null,null,null,null,null,null,null,null,null,null,null,null,null,null,null,null,null,null,null,null,null,null,null,null,null,null,null,null,null,{"$f":"SUM(AQ113:AQ116)-AQ115","v":0},null,null,null,null,null,null,null,null,{"$f":"SUM(AZ112:BI116)","v":0}]
[null,null,null,null,"5.2.1. Comisioanele şi dobânzile aferente creditului băncii finanţatoare",null,null,null,null,null,null,null,null,null,null,null,null,null,null,null,null,null,null,null,null,null,null,null,null,null,null,null,null,null,null,null,null,null,null,null,null,null,1]
[null,null,null,null,"5.2.2. Cota aferentă ISC pentru controlul calităţii lucrărilor de\nconstrucţii"]
[null,null,null,null,"5.2.3. Cota aferentă ISC pentru controlul statului în amenajarea teritoriului, urbanism şi pentru autorizarea lucrărilor de construcţii"]
[null,null,null,null,"5.2.4. Cota aferentă Casei Sociale a Constructorilor - CSC"]
[null,null,null,null,"5.2.5. Taxe pentru acorduri, avize conforme şi autorizaţia de construire/desfiinţare"]
["5.3",null,null,null," Cheltuieli diverse si neprevazute"]
["5.3",null,null,null,"Cheltuieli pentru informare și publicitate",null,null,null,null,null,null,null,null,null,null,null,null,null,null,null,null,null,null,null,null,null,null,null,null,null,null,null,null,null,null,null,null,null,null,null,null,null,0,null,null,null,null,null,null,null,null,0]
[null,null,null,null,"TOTAL DEVIZ CAPITOLUL 5",null,null,null,null,null,null,null,null,null,null,null,null,null,null,null,null,null,null,null,null,null,null,null,null,null,null,null,null,null,null,null,null,null,null,null,null,null,{"$f":"AQ108+AQ111+AQ118","v":0},null,null,null,null,null,null,null,null,{"$f":"AZ118+AZ117+AZ111+AZ108","v":0}]
[null,null,null,null,"VALOARE TVA aferentă cheltuielilor eligibile şi neeligibile"]
[null,null,null,null,"TOTAL DEVIZ CAPITOLUL 5 ( inclusiv TVA)",null,null,null,null,null,null,null,null,null,null,null,null,null,null,null,null,null,null,null,null,null,null,null,null,null,null,null,null,null,null,null,null,null,null,null,null,null,{"$f":"AQ119+AZ119+AQ120+AZ120","v":0}]